Cogmind - Beta 13 --- EXPLORER MODE // 2024.04.18 @ 20:24:29 // Winter2019/RPGLIKE Player: H3-RMN Result: Destroyed by Architect with Modified Sigix Sheargun Performance ------------- Evolutions (9) 4500 Regions Visited (37) 7400 Robots Destroyed (426) 2130 Value Destroyed (24847) 24847 Prototype IDs (298) 5960 Alien Tech Used (15) 3000 Bonus (36026) 36026 TOTAL SCORE: 83863 Bonus ------- Triggered High Security 500 High Alert Combat Kills 1967 Follower Combat Kills 1311 Installed LC Capacitor 1000 Entered Garrisons 600 Used RIF Installer 1500 Entered DSFs 500 Network Hubs Disabled 800 Met Zhirov 300 A7 Reached Mainframe 300 Found Hidden Lab 3000 Pursued by Intercept 2000 Destroyed MAIN.C Guards 500 Met MAIN.C 5000 Hacked MAIN.C 300 Destroyed MAIN.C Shell 5000 Destroyed MAIN.C 10000 Met Architect 300 Destroyed A8 300 Destroyed A2 1000 Friendly Fire -152 Cogmind --------- Core Integrity 0/2150 Matter 173/300 Energy 822/840 System Corruption 0% Temperature Cool (0) Movement Core (100) Ox1 Location -1/Access_0 Parts ------- > --- POWER (3) -------- Zero-point Reactor Vortex Chain Reactor > --- PROPULSION (5) --- Experimental Biometal Heavy Treads Advanced Heavy Siege Treads Experimental Biometal Medium Treads > --- UTILITY (13) ----- Advanced Quantum Shading Machine Experimental Signal Interpreter Experimental Terrain Scanner Experimental Core Analyzer Improved Armor Integrity Analyzer Experimental Powered Armor Experimental Focal Shield Beam Splitter Experimental EM Disruption Field Experimental Shield Generator Advanced Drone Bay (1/2) > --- WEAPON (5) ------- Warp Cannon Hypervelocity Linear Accelerator > --- INVENTORY (8) ---- Protomatter-42 Experimental Energy Well (600) Experimental Energy Well (600) Drained L-Cannon Peak State ------------ > --- POWER ------------ Zero-point Reactor Vortex Chain Reactor > --- PROPULSION ------- Experimental Biometal Heavy Treads Advanced Heavy Siege Treads Experimental Biometal Medium Treads > --- UTILITY ---------- Advanced Quantum Shading Machine Experimental Signal Interpreter Experimental Terrain Scanner Experimental Core Analyzer Improved Armor Integrity Analyzer Advanced Phase Shifter Experimental Powered Armor Experimental Focal Shield Beam Splitter Experimental EM Disruption Field Experimental Shield Generator Advanced Drone Bay > --- WEAPON ----------- Warp Cannon L-Cannon > --- INVENTORY -------- Protomatter Protomatter Protomatter Protomatter Experimental Energy Well Experimental Energy Well Hypervelocity Linear Accelerator [Rating: 259] Favorites ----------- Power Improved Quantum Reactor Engine Backup Power I Power Core Fission Core Reactor Improved Quantum Reactor Propulsion Cooled Q-thruster Treads Experimental Biometal Heavy Treads Leg High-density Centrium Leg Wheel Wheel Hover Unit Cooled Gravmag System Flight Unit Cooled Q-thruster Utility Relay Coupler [NC] Device Advanced Gravity Neutralizer Storage Advanced Energy Well Processor Experimental Signal Interpreter Hackware Relay Coupler [NC] Protection Powered Armor Artifact LC Capacitor Weapon Thermic Laser Energy Gun Thermic Laser Energy Cannon Warp Cannon Ballistic Gun Light Assault Rifle Ballistic Cannon Hypervelocity Linear Accelerator Launcher Mini Smartbomb Launcher Special Weapon Improved Plasma Cutter Impact Weapon Makeshift Hammer Slashing Weapon Nanosword Piercing Weapon Plasma Lance Special Melee Weapon Advanced Datajack Build | -11 -10 -10 -10 -8 -7 -7 -7 -7 -7 -6 -6 -6 -6 -6 -6 -5 -5 -5 -5 -5 -5 -5 -5 -4 -4 -4 -4 -4 -4 -3 -3 -2 -2 -2 -1 -1 -1 ------- Run | Yrd Mat Min Sub Mat Fac Was Fac DSF Gar Fac Ext Cet Arc Hub Gar Fac Was Fac Gar Fac Upp Upp Zhi Pro Fac Was Fac Arm Lab Res Qua Res Tes Sec Acc Com Ac0 Slots Evolved 21 | 6 1 1 . 1 1 . . . . 3 . 1 . . . 2 . . . . . . . . 1 . . . . 1 . . 1 . . 2 . Power 2 | . . . . . . . . . . 1 . . . . . . . . . . . . . . . . . . . . . . . . . 1 . Propulsion 4 | 2 . . . . . . . . . 1 . . . . . 1 . . . . . . . . . . . . . . . . . . . . . Utility 12 | 3 1 . . 1 1 . . . . 1 . 1 . . . 1 . . . . . . . . 1 . . . . 1 . . . . . 1 . Weapon 3 | 1 . 1 . . . . . . . . . . . . . . . . . . . . . . . . . . . . . . 1 . . . . Parts Attached 451 | 10 8 3 10 24 4 1 . 1 3 54 2 4 1 2 8 37 3 26 7 23 5 6 6 9 53 1 13 15 3 22 10 1 29 10 3 26 8 Power 26 | 1 . . . 2 . . . . . 3 . . . . . 1 . 2 . 1 . . . . . . . . . 2 3 . 8 . . 3 . Engine 6 | 1 . . . 2 . . . . . 2 . . . . . . . . . . . . . . . . . . . . . . 1 . . . . Core 1 | . . . . . . . . . . 1 . . . . . . . . . . . . . . . . . . . . . . . . . . . Reactor 19 | . . . . . . . . . . . . . . . . 1 . 2 . 1 . . . . . . . . . 2 3 . 7 . . 3 . Propulsion 59 | 3 5 . . 7 2 . . 1 1 6 . . . . . 9 . 6 . . . . 2 . 3 . 5 . . 2 . . 3 . . 4 . Treads 11 | 2 2 . . . . . . . . . . . . . . 1 . . . . . . . . 1 . . . . . . . 1 . . 4 . Leg 1 | . . . . . . . . . . . . . . . . 1 . . . . . . . . . . . . . . . . . . . . . Wheel 1 | 1 . . . . . . . . . . . . . . . . . . . . . . . . . . . . . . . . . . . . . Hover 1 | . . . . . . . . . . . . . . . . . . . . . . . 1 . . . . . . . . . . . . . . Flight 45 | . 3 . . 7 2 . . 1 1 6 . . . . . 7 . 6 . . . . 1 . 2 . 5 . . 2 . . 2 . . . . Utility 198 | 4 2 2 2 8 1 . . . 2 23 . 2 1 . 4 15 2 10 2 16 4 5 4 3 28 . 5 7 1 9 4 1 7 3 3 13 5 Device 140 | 1 1 1 2 3 1 . . . 2 18 . . . . 2 8 2 10 . 14 3 4 3 2 22 . 3 3 . 8 4 1 7 3 1 8 3 Storage 2 | . . . . . . . . . . . . . . . . 1 . . . . . . 1 . . . . . . . . . . . . . . Processor 20 | 1 . . . 2 . . . . . 2 . . . . . 2 . . . 1 . . . 1 4 . 2 2 . . . . . . . 3 . Hackware 10 | . . . . 2 . . . . . 1 . . 1 . 2 1 . . 1 . . . . . . . . 1 . 1 . . . . . . . Protection 25 | 2 1 1 . 1 . . . . . 2 . 2 . . . 3 . . 1 1 1 1 . . 2 . . 1 . . . . . . 2 2 2 Artifact 1 | . . . . . . . . . . . . . . . . . . . . . . . . . . . . . 1 . . . . . . . . Weapon 168 | 2 1 1 8 7 1 1 . . . 22 2 2 . 2 4 12 1 8 5 6 1 1 . 6 22 1 3 8 2 9 3 . 11 7 . 6 3 Energy Gun 50 | . . . . 3 . . . . . 7 1 1 . 1 1 3 . 6 2 3 . 1 . 2 10 . 2 4 1 1 . . 1 . . . . Energy Cannon 20 | . . . 1 . . . . . . 1 . . . . . . . . . . . . . . 1 . . . . 4 . . 3 5 . 4 1 Ballistic Gun 9 | 2 1 1 1 1 . . . . . . . 1 . . . . . . . . . . . . . . . . . 1 . . 1 . . . . Ballistic Cannon 5 | . . . . . . . . . . 1 . . . . . . . . . . . . . 2 . . . . . . . . . . . . 2 Launcher 9 | . . . . 1 . 1 . . . . . . . . . . . 1 . 1 . . . 1 2 . 1 . . 1 . . . . . . . Special Weapon 35 | . . . 4 2 . . . . . 5 1 . . 1 2 1 . 1 2 . . . . . 3 . . 2 . 1 . . 6 2 . 2 . Impact Weapon 6 | . . . 1 . . . . . . 3 . . . . . . . . . . . . . . . . . . . . 2 . . . . . . Slashing Weapon 9 | . . . 1 . 1 . . . . 1 . . . . . 1 . . . . . . . . 3 . . . . 1 1 . . . . . . Piercing Weapon 2 | . . . . . . . . . . . . . . . . 2 . . . . . . . . . . . . . . . . . . . . . Special Melee Weapon 23 | . . . . . . . . . . 4 . . . . 1 5 1 . 1 2 1 . . 1 3 1 . 2 1 . . . . . . . . Unidentified Prototypes 56 | . . . . 3 . 1 . . 1 7 . 2 . . . 6 . . . 1 . . 3 . 4 . 6 . 1 2 3 . 8 5 . 2 1 Parts Lost 7 | . . . . 1 . . . . . . . . . . . 1 . . . 1 . . . . . . . . . . . . 1 . . . 3 Power 3 | . . . . . . . . . . . . . . . . 1 . . . 1 . . . . . . . . . . . . 1 . . . . Propulsion . | . . . . . . . . . . . . . . . . . . . . . . . . . . . . . . . . . . . . . . Utility 4 | . . . . 1 . . . . . . . . . . . . . . . . . . . . . . . . . . . . . . . . 3 Weapon . | . . . . . . . . . . . . . . . . . . . . . . . . . . . . . . . . . . . . . . Highest Loss Streak 1 | . . . . 1 . . . . . . . . . . . 1 . . . 1 . . . . . . . . . . . . 1 . . . 1 To Critical Strikes 1 | . . . . . . . . . . . . . . . . . . . . . . . . . . . . . . . . . . . . . 1 Average Slot Usage (%) 94 | . 93 99 99 99 99 100 100 100 100 94 100 99 98 100 99 99 95 99 100 98 97 100 100 99 99 100 99 98 89 82 85 86 85 72 82 78 73 Engine 3 | . 9 8 8 7 7 7 7 7 7 9 11 11 11 11 11 8 . . . . . . . . . . . . . . . . . . . . . Reactor 5 | . . . . . . . . . . . . . . . . 1 5 9 10 8 10 10 10 10 9 9 9 9 9 8 8 8 7 4 4 5 7 Flight 21 | . 8 25 25 23 21 21 21 21 21 18 23 22 22 22 22 20 25 25 25 25 25 25 25 25 23 23 22 23 22 21 21 21 20 20 20 11 . Device 26 | . 11 25 24 26 25 28 28 28 32 21 23 22 22 22 21 21 20 24 20 24 27 30 31 34 31 33 32 23 22 23 25 26 25 25 28 28 28 Processor 10 | . 6 . . 3 7 7 7 7 7 11 11 11 11 11 11 13 15 15 15 15 10 10 10 9 14 14 14 16 13 8 8 8 8 8 8 11 11 Hackware 5 | . . . . 6 7 7 7 7 2 5 5 5 9 11 11 10 10 10 10 10 10 10 9 5 4 4 4 5 4 5 4 4 4 4 4 2 . Protection 3 | . 19 16 16 6 7 7 7 7 7 5 5 5 5 5 5 5 5 . 5 . 2 . . . . . . 3 3 . . . . . 7 6 5 Energy Gun 7 | . . . . 4 1 . . . . 8 17 16 16 14 13 10 10 9 6 12 10 10 10 10 10 9 9 9 8 4 4 4 . . . . . Energy Cannon 1 | . . . . . . . . . . . . . . . . . . . . . . . . . . . . . . 1 . . 1 5 8 7 6 Ballistic Gun 1 | . 19 22 7 4 7 1 . . . . . . . . . . . . . . . . . . . . . . . . . . . . . . . Impact Weapon 1 | . . . 3 7 7 7 7 7 7 3 . . . . . . . . . . . . . . . . . . . . 3 4 4 1 . . . Special Melee Weapon 2 | . . . . . . . . . . 1 . . . . . 4 4 5 4 2 2 5 5 5 2 4 3 3 2 1 . . . . . . . Naked Turns . | . . . . . . . . . . . . . . . . . . . . . . . . . . . . . . . . . . . . . . Heaviest Build 171 | 11 11 13 23 20 19 20 20 20 20 43 43 43 43 43 43 51 51 53 66 65 67 58 61 62 64 63 60 68 71 102 76 76 82 126 132 159 171 Greatest Support 270 | 45 25 17 17 20 21 21 21 24 36 47 47 47 47 55 47 51 51 66 66 81 66 66 66 66 81 66 81 66 66 70 76 81 90 85 85 270 260 Greatest Overweight (x) 4 | . . . 1 1 1 . . . . 1 . . 1 . . 2 . . . . 1 . . . 1 1 1 1 1 1 4 3 3 3 2 2 1 Average Overweight (x) . | . . . . . . . . . . . . . . . . . . . . . . . . . . . . . . . . . . . 1 . . Largest Inventory Capacity 8 | 3 3 3 3 5 5 5 5 5 6 6 6 6 6 6 6 6 6 6 6 7 7 7 7 7 7 7 7 7 7 7 7 7 7 7 7 8 8 Average Capacity 6 | 2 3 3 3 4 5 5 5 5 5 6 6 6 6 6 6 6 6 6 6 6 7 7 7 7 7 7 7 7 7 7 7 7 7 7 7 7 8 Most Carried 8 | 1 1 3 3 5 5 5 5 5 6 6 6 6 6 6 6 6 6 6 6 7 7 7 7 7 7 7 7 7 7 7 7 7 7 7 7 8 8 Average Carried 6 | . . 2 3 4 4 4 5 5 5 5 5 5 6 5 5 5 5 5 6 6 6 7 6 6 6 7 7 6 6 6 6 7 6 6 6 7 6 Final Capacity 8 | 3 3 3 3 5 5 5 5 5 6 6 6 6 6 6 6 6 6 6 6 7 7 7 7 7 7 7 7 7 7 7 7 7 7 7 7 8 8 Final Carried 7 | 1 1 3 3 5 5 5 5 5 6 6 5 6 6 6 6 6 6 6 6 7 7 7 7 6 7 7 7 7 7 7 7 7 7 6 7 7 7 Class Distribution -------------------- 29% | Wizard-Ninja 14% | Wizard-Scout 11% | Machinist-Ninja 9% | Hacker-Ninja 8% | Wizard-Tank 6% | Hacker-Mutant 5% | Wizard-Skirmisher 4% | Wizard-Gladiator 4% | Hacker-Scout Dominant Class ---------------- Hacker-Mutant | -10/Materials Hacker-Skirmisher | -10/Mines Hacker-Mutant | -10/Subcaves Hacker-Ninja | -8/Materials Hacker-Ninja | -7/Factory Hacker-Ninja | -7/Waste Hacker-Ninja | -7/Factory Hacker-Ninja | -7/DSF Hacker-Ninja | -7/Garrison Hacker-Ninja | -6/Factory Hacker-Scout | -6/Extension Hacker-Scout | -6/Cetus Wizard-Scout | -6/Archives Wizard-Scout | -6/Hub_04(d) Wizard-Scout | -6/Garrison Wizard-Ninja | -5/Factory Wizard-Ninja | -5/Waste Wizard-Ninja | -5/Factory Wizard-Ninja | -5/Garrison Wizard-Ninja | -5/Factory Wizard-Ninja | -5/Upper Caves Wizard-Ninja | -5/Upper Caves Wizard-Ninja | -5/Zhirov Wizard-Ninja | -4/Proximity Caves Machinist-Ninja | -4/Factory Machinist-Ninja | -4/Waste Machinist-Ninja | -4/Factory Wizard-Ninja | -4/Armory Machinist-Ninja | -4/Lab Wizard-Scout | -3/Research Wizard-Gladiator | -3/Quarantine Wizard-Gladiator | -2/Research Wizard-Ninja | -2/Testing Wizard-Skirmisher | -2/Section 7 Wizard-Tank | -1/Access Wizard-Tank | -1/Command Wizard-Tank | -1/Access_0 Resources | -11 -10 -10 -10 -8 -7 -7 -7 -7 -7 -6 -6 -6 -6 -6 -6 -5 -5 -5 -5 -5 -5 -5 -5 -4 -4 -4 -4 -4 -4 -3 -3 -2 -2 -2 -1 -1 -1 ----------- Run | Yrd Mat Min Sub Mat Fac Was Fac DSF Gar Fac Ext Cet Arc Hub Gar Fac Was Fac Gar Fac Upp Upp Zhi Pro Fac Was Fac Arm Lab Res Qua Res Tes Sec Acc Com Ac0 Matter Collected 6636 | 336 251 82 139 331 . 40 85 . 105 650 30 40 10 20 127 417 . 326 70 235 50 30 . 290 644 10 127 160 50 649 100 10 325 155 30 669 43 Remotely 10 | . . . . . . . . . . . . . . . . . . . . . 10 . . . . . . . . . . . . . . . . Salvage Created 21511 | 111 535 264 86 902 . . . 11 854 1093 374 203 553 360 2164 808 301 924 584 607 . 98 . 720 1985 . 477 540 58 2048 591 548 1001 345 280 1848 238 Parts 825 | 8 43 15 6 28 4 . . 5 25 40 20 2 15 22 50 24 6 34 29 26 8 7 . 15 73 . 13 14 . 78 24 24 53 3 18 67 26 Haulers Intercepted 12 | . 2 . . 5 . . . . . . . . . . . 1 . 1 . 1 . . . . . . . . . 2 . . . . . . . Recyclers Shooed 3 | . 1 1 . . . . . . . . . . . . . . . . . . . . . . 1 . . . . . . . . . . . . Parts Field Recycled . | . . . . . . . . . . . . . . . . . . . . . . . . . . . . . . . . . . . . . . Retrieved Matter . | . . . . . . . . . . . . . . . . . . . . . . . . . . . . . . . . . . . . . . Parts Self-Destructed . | . . . . . . . . . . . . . . . . . . . . . . . . . . . . . . . . . . . . . . Prevented . | . . . . . . . . . . . . . . . . . . . . . . . . . . . . . . . . . . . . . . Kills | -11 -10 -10 -10 -8 -7 -7 -7 -7 -7 -6 -6 -6 -6 -6 -6 -5 -5 -5 -5 -5 -5 -5 -5 -4 -4 -4 -4 -4 -4 -3 -3 -2 -2 -2 -1 -1 -1 ------- Run | Yrd Mat Min Sub Mat Fac Was Fac DSF Gar Fac Ext Cet Arc Hub Gar Fac Was Fac Gar Fac Upp Upp Zhi Pro Fac Was Fac Arm Lab Res Qua Res Tes Sec Acc Com Ac0 Combat Hostiles Destroyed 336 | . 12 6 1 12 2 . . 3 6 21 4 2 4 5 22 10 2 15 10 15 4 3 . 12 41 . 7 11 1 38 8 9 17 3 6 21 3 Melee 35 | . . . . 3 2 . . . 3 4 . . . . . . . . . . . . . . . . . . . 2 5 4 12 . . . . Guns 137 | . 12 6 . 2 . . . . . 7 2 . 2 4 18 3 . 6 9 7 3 . . 4 18 . 4 8 . 22 . . . . . . . Cannons 25 | . . . . . . . . . . . . . . . . . . . . . . . . . . . . . . 4 . . 1 1 5 14 . AOE 25 | . . . . . . . . 3 . . . . . . . . . 4 . . . . . 4 5 . . . . 9 . . . . . . . Classes Destroyed 26 | 2 6 . 2 1 . . . 1 2 2 . . 1 1 . 1 1 2 . . . . . . . . . . . . . . 2 1 . 1 . Worker 8 | . 1 . . 1 . . . . . . . . . . . . . . . . . . . . . . . . . 3 . 1 1 . . 1 . Builder 5 | . 1 . . . . . . . . . 3 . . . . . . . . . . . . . 1 . . . . . . . . . . . . Tunneler 2 | 2 . . . . . . . . . . . . . . . . . . . . . . . . . . . . . . . . . . . . . Hauler 12 | . 2 . . 5 . . . . . . . . . . . 1 . 1 . 1 . . . . . . . . . 2 . . . . . . . Recycler 8 | 1 . 1 . 1 . . . . . . . . . . . . . . . . . . . . 1 . . . . . . . 2 . 1 1 . Mechanic 1 | . . . . . . . . . . . . . . . . . . 1 . . . . . . . . . . . . . . . . . . . Operator 12 | . . . . . . . . . . . . . 5 1 . . . . . . . . . . . . 1 . . . 2 . . 1 . 2 . Watcher 41 | . 2 . . 3 . . . . . 7 1 . . 4 . 2 . 2 . 4 . . . . 7 . 1 2 . 2 1 . . . . 3 . Swarmer 78 | . 4 2 . 4 . . . . . 5 . . . . 6 1 . 5 5 5 3 . . 4 11 . 4 6 . 4 . . . . 3 6 . Cutter 3 | . . . . . . . . 3 . . . . . . . . . . . . . . . . . . . . . . . . . . . . . Saboteur 1 | . . . . . . . . . . . . . . . . . . . . . . . . . . . . . . . . . . . . 1 . Grunt 70 | . 8 4 . . 2 . . . 3 3 1 . . 3 6 1 . 4 2 . . . . 3 5 . . . . 6 5 3 4 . . 7 . Brawler 4 | . . . . . . . . . 1 . . . . . 1 . . . 1 . . . . 1 . . . . . . . . . . . . . Duelist 2 | . . . . . . . . . . 1 . . . . . . . . . . . . . . . . . . . . 1 . . . . . . Researcher 1 | . . . . . . . . . . . . . . . . . . . . . . . . . . . . . . . . . . 1 . . . Sentry 53 | . . . . 8 . . . . . 3 2 . 4 1 1 3 . . 1 5 1 . . . 8 . 1 2 . 4 . 3 . 1 1 4 . Specialist 2 | . . . . . . . . . . . . . . . . . . 1 . . . . . . . . . 1 . . . . . . . . . Hunter 34 | . . . . . . . . . 2 4 . . . . . 1 . 1 . 3 . 2 . 1 4 . 2 . . 12 2 . . . . . . Programmer 57 | . . . . . . . . . . 5 1 . . . 6 3 . 4 1 2 . . . 2 12 . . 1 . 7 . 3 6 . 1 3 . Heavy 1 | . . . . . . . . . . . . . . . . 1 . . . . . . . . . . . . . . . . . . . . . Behemoth 7 | . . . . . . . . . . . . . . 1 2 . . . . . . 1 . 1 1 . . 1 . . . . . . . . . Compactor 2 | . . . . . . . . . . . . . . . . . 2 . . . . . . . . . . . . . . . . . . . . Cetus Guard 2 | . . . . . . . . . . . . 2 . . . . . . . . . . . . . . . . . . . . . . . . . S7 Guard 1 | . . . . . . . . . . . . . . . . . . . . . . . . . . . . . . . . . . 1 . . . Enhanced Grunt 1 | . . . . . . . . . . . . . . . . . . . . . . . . . . . . . . . . . . . . . 1 Enhanced Hunter 1 | . . . . . . . . . . . . . . . . . . . . . . . . . . . . . . . . . . . . . 1 Tracker 4 | . . . . . . . . . . . . . . . . . . . . . . . . . . . . . . 2 . . 2 . . . . Combat Programmer 7 | . . . . . . . . . . . . . . . . . . . . . . . . . . . . . . 3 . . 2 1 1 . . Striker 2 | . . . . . . . . . . . . . . . . . . . . . . . . . . . . . . . . . 2 . . . . Fortress 1 | . . . . . . . . . . . . . . . . . . . . . . . . . . . . . . . . . 1 . . . . Artisan 1 | . . . 1 . . . . . . . . . . . . . . . . . . . . . . . . . . . . . . . . . . Subdweller 1 | . . . 1 . . . . . . . . . . . . . . . . . . . . . . . . . . . . . . . . . . Best Kill Streak 11 | 2 4 4 1 5 2 . . 3 4 4 3 2 6 6 4 2 2 11 2 5 3 2 . 4 7 . 4 4 1 7 3 2 5 1 2 6 2 Combat Bots Only 10 | . 4 4 1 4 2 . . 3 4 4 1 2 2 1 4 2 2 10 2 5 3 2 . 4 7 . 4 4 1 7 3 2 4 1 2 6 2 Max Kills in Single Turn 6 | 1 2 1 1 1 1 . . 2 1 1 1 1 1 1 1 1 1 3 1 1 2 1 . 4 6 . 1 1 1 4 1 1 1 1 1 1 1 Gunslinging 1 | . . . . . . . . . . . . . . . . . . . . . 1 . . . 1 . . . . . . . . . . . . Exploded 5 | . . . . . . . . 2 . . . . . . . . . 3 . . . . . 4 5 . . . . 3 . . . . . . . Melee 1 | . . . . 1 1 . . . 1 1 . . . . . . . . . . . . . . . . . . . 1 1 1 1 . . . . Uniques/NPCs Destroyed 2 | . . . . . . . . . . . . . . . . . . . . . . . . . . . . . 1 . . . . . . . 1 A5 (-4/Lab) A8 (-1/Access_0) Combat | -11 -10 -10 -10 -8 -7 -7 -7 -7 -7 -6 -6 -6 -6 -6 -6 -5 -5 -5 -5 -5 -5 -5 -5 -4 -4 -4 -4 -4 -4 -3 -3 -2 -2 -2 -1 -1 -1 -------- Run | Yrd Mat Min Sub Mat Fac Was Fac DSF Gar Fac Ext Cet Arc Hub Gar Fac Was Fac Gar Fac Upp Upp Zhi Pro Fac Was Fac Arm Lab Res Qua Res Tes Sec Acc Com Ac0 Hostile Shots Fired 3551 | . 47 39 34 66 9 . . 13 12 123 67 26 35 93 169 63 . 118 18 120 10 54 . 94 291 . 56 41 17 598 56 44 250 32 131 212 613 Missed 1279 | . 11 17 18 18 5 . . 10 5 64 33 14 15 35 60 19 . 37 11 53 8 30 . 32 123 . 27 15 7 160 14 15 46 10 43 90 234 Damage Taken 21172 | . 249 190 180 360 28 . . 132 45 414 376 151 217 857 941 698 . 683 80 714 18 212 . 649 1626 . 237 327 257 2924 392 164 1815 477 591 535 4633 Core 15402 | . 150 115 113 240 15 . . 87 29 233 290 109 158 524 601 401 . 544 44 521 15 166 . 519 1321 . 186 193 154 2330 304 128 1462 389 396 378 3287 Absorbed by Shields 6971 | . . . . 101 11 . . 31 19 127 121 56 76 100 350 204 . 245 29 276 7 85 . 249 572 . 91 122 98 858 156 60 674 151 236 201 1665 Reduced by Siege Mode 58 | . . . . . . . . . . . . . . . . . . . . . . . . . . . . . . . . . . . . . 58 Redirected to Core 12582 | . 130 85 90 180 15 . . 60 21 212 189 100 124 493 509 356 . 446 35 445 9 149 . 416 998 . 142 165 143 1919 274 116 1154 294 357 354 2602 Redirected to Shielding 448 | . 23 13 15 . . . . . . . . . . . . . . . . . . . . . . . . . . . . . . . 83 51 263 Ignored by Resistances 27487 | . 157 118 109 288 24 . . 93 39 328 132 119 170 559 769 520 . 551 63 586 14 174 . 529 1306 . 198 259 206 5350 326 462 3860 332 1312 2360 6174 Regen/Repaired (Parts) 262 | . . . . 9 . . . . . . . . . . . . 23 . . . . . . . 9 . . 71 . . 19 . . 131 . . . Core Remaining (%) 88 | 100 . . 96 82 . . . . 100 . . . . . 88 . . . . . . . . 90 . . . . 100 . 42 . . 96 . . . Volleys Fired 1383 | 9 50 26 12 32 . 3 . 3 . 50 46 9 28 49 129 56 7 66 59 61 6 11 . 38 156 . 18 41 32 167 3 . 9 15 29 109 54 Largest 3 | 2 2 2 3 2 . 1 . 1 . 3 2 2 2 3 3 2 2 2 2 2 2 2 . 2 2 . 2 2 2 1 1 . 1 1 1 1 1 Hottest 900 | 40 40 40 208 180 . 80 . 80 . 250 170 170 170 250 250 170 170 170 170 170 170 240 . 170 170 . 170 170 240 240 80 . 100 900 900 900 900 Shots Fired 2115 | 18 99 52 31 49 . 3 . 3 . 87 68 18 47 80 239 101 14 99 62 119 12 21 . 70 284 . 34 67 53 167 3 . 9 15 29 109 53 Gun 1851 | 18 99 52 18 39 . . . . . 87 68 18 47 80 239 101 14 96 62 119 12 21 . 68 283 . 34 67 53 153 3 . . . . . . Cannon 217 | . . . 1 . . . . . . . . . . . . . . . . . . . . . . . . . . 9 . . 6 13 29 106 53 Launcher 17 | . . . . . . 3 . 3 . . . . . . . . . 3 . . . . . 2 1 . . . . 5 . . . . . . . Special 30 | . . . 12 10 . . . . . . . . . . . . . . . . . . . . . . . . . . . . 3 2 . 3 . Kinetic 224 | 18 99 52 18 24 . . . . . . . . . . . . . . . . . . . . . . . . . . . . . . . . 13 Thermal 1862 | . . . 13 21 . . . . . 87 68 18 47 80 239 101 14 96 62 119 12 21 . 68 283 . 34 67 53 162 3 . 6 13 29 106 40 Explosive 14 | . . . . . . 3 . 3 . . . . . . . . . . . . . . . 2 1 . . . . 5 . . . . . . . Electromagnetic 7 | . . . . 4 . . . . . . . . . . . . . 3 . . . . . . . . . . . . . . . . . . . Robot Hit Streak 117 | 15 22 33 17 32 . 9 . 11 . 32 20 17 33 36 85 21 21 14 12 31 41 13 . 33 31 . 19 16 25 27 . . 10 17 33 90 117 Robot Miss Streak 3 | . 2 1 1 1 . . . . . 2 1 1 2 1 2 2 1 2 1 2 . 1 . 1 3 . 1 2 1 2 . . . . . . 1 Penetration Max 15 | . . . . . . . . . . . . . . . . . . . . . . . . . . . . . . . . . . . 4 15 1 Secondary Targets 14 | . . . . . . . . . . 1 . 2 . 1 2 1 . . . 2 1 . . . 3 . 1 . . . . . . . . . . Max Gunslinging Chain 1 | . . . . . . . . . . 1 . 1 . 1 1 1 . . . 1 1 . . . 1 . 1 . . . . . . . . . . Shots Hit Robots 1914 | 15 77 47 24 83 8 2 . 2 34 103 40 17 42 61 195 86 13 68 34 111 11 19 3 63 232 . 32 54 39 148 28 23 70 21 16 57 36 Core Hits 724 | 5 35 17 9 14 2 . . 4 11 29 12 7 22 24 78 26 2 29 17 38 4 5 . 24 87 . 10 18 10 79 11 6 27 6 15 32 9 Critical Kills 17 | . 2 1 . 1 . . . . . 1 . . . . . . . . . . . . . . . . . . . . . . 1 2 1 7 1 Critical Parts Destroyed 14 | . . . . 6 . . . . 2 4 . . . . . . . . . . . . . . . . . . . . . . . . . . 2 Critical Strikes 302 | . 2 1 1 8 . . . . 2 21 5 3 8 9 53 11 3 6 1 24 4 9 . 11 61 . 9 17 4 . 3 . 11 2 1 7 5 Burn 253 | . . . 1 1 . . . . . 13 5 3 8 9 53 11 3 6 1 24 4 9 . 11 61 . 9 17 4 . . . . . . . . Meltdown 12 | . . . . . . . . . . . . . . . . . . . . . . . . . . . . . . . . . 1 2 1 7 1 Destroy 8 | . 2 1 . 1 . . . . . . . . . . . . . . . . . . . . . . . . . . . . . . . . 4 Smash 13 | . . . . 6 . . . . 2 5 . . . . . . . . . . . . . . . . . . . . . . . . . . . Sever 16 | . . . . . . . . . . 3 . . . . . . . . . . . . . . . . . . . . 3 . 10 . . . . Melee Attacks 413 | . . . 22 47 8 . . . 53 57 . . . . 1 5 . 4 6 11 1 1 3 1 10 . 4 10 1 16 40 26 69 17 . . . Kinetic 57 | . . . . . . . . . . . . . . . . . . . . . . . . . . . . . . . 11 16 24 6 . . . Impact 107 | . . . 1 47 1 . . . 22 36 . . . . . . . . . . . . . . . . . . . . . . . . . . . Slashing 173 | . . . 21 . 7 . . . 31 8 . . . . . . . . . . . . . . 2 . . . . 9 29 10 45 11 . . . Piercing . | . . . . . . . . . . . . . . . . . . . . . . . . . . . . . . . . . . . . . . Sneak Attacks 81 | . . . 1 6 . . . . 1 16 . . . . . 5 . 3 6 6 1 1 3 1 8 . 3 8 . 5 . 3 3 1 . . . Combat Hostiles 9 | . . . . 1 . . . . 1 2 . . . . . . . . . . . . . . . . . . . 2 . 2 . 1 . . . Follow-up Attacks 14 | . . . . . 1 . . . 4 4 . . . . . . . . . . . . . . . . . . . . . . 4 1 . . . Damage Inflicted 55884 | 163 730 379 293 2571 276 360 . 286 2071 2927 795 306 851 1126 3853 1573 252 1736 839 1974 183 408 . 1823 5188 . 504 862 513 9374 1488 1400 3975 1078 1050 3397 1280 Guns 28507 | 163 730 379 142 606 . . . . . 1142 795 306 851 1126 3853 1573 252 1388 839 1974 183 408 . 1171 4451 . 504 862 513 4296 . . . . . . . Cannons 7406 | . . . 30 . . . . . . . . . . . . . . . . . . . . . . . . . . 1042 . . 309 437 911 3397 1280 Explosions 5935 | . . . . . . 360 . 286 . . . . . . . . . 348 . . . . . 652 737 . . . . 3413 . . . . 139 . . Melee 13807 | . . . . 1857 276 . . . 2071 1785 . . . . . . . . . . . . . . . . . . . 623 1488 1400 3666 641 . . . Ramming . | . . . . . . . . . . . . . . . . . . . . . . . . . . . . . . . . . . . . . . Kinetic 4646 | 163 730 379 142 310 . . . . . . . . . . . . . . . . . . . . . . . . . . 443 881 1067 232 . . 299 Thermal 36214 | . . . 151 320 . . . . . 1142 795 306 851 1126 3853 1573 252 1463 839 1974 183 408 . 1171 4710 . 504 862 513 7183 . . 309 437 911 3397 981 Explosive 3483 | . . . . . . 360 . 286 . . . . . . . . . . . . . . . 652 478 . . . . 1568 . . . . 139 . . Electromagnetic 357 | . . . . 84 . . . . . . . . . . . . . 273 . . . . . . . . . . . . . . . . . . . Impact 4295 | . . . . 1857 63 . . . 697 1678 . . . . . . . . . . . . . . . . . . . . . . . . . . . Slashing 6889 | . . . . . 213 . . . 1374 107 . . . . . . . . . . . . . . . . . . . 623 1045 519 2599 409 . . . Piercing . | . . . . . . . . . . . . . . . . . . . . . . . . . . . . . . . . . . . . . . Highest Corruption 9 | . 1 1 1 . . . . . . 1 . . . 8 9 1 . 2 . 3 . 1 . 2 2 5 5 . . 1 . . 3 3 1 1 . Average Corruption 2 | . 1 1 1 . . . . . . 1 . . . 4 8 1 . 1 . 2 . 1 . 1 1 5 3 . . 1 . . 2 2 1 1 . Corruption Purged 26 | . . . 1 . . . . . . 2 . . . . . 1 . 2 . 3 . 1 . 3 3 . 5 . . 1 . . . 3 . 1 . Corruption Blocked 35 | . . . . . . . . . . . . . . . . . . . . . . . . . . . . . . 15 . . 20 . . . . Effects 105 | . 5 3 7 . . . . . . 1 . . . 1 40 8 . 4 . 3 . . . . 4 1 1 . . 3 . . 3 1 5 15 . Message Errors 22 | . 1 . 2 . . . . . . . . . . . 7 3 . 1 . . . . . . 1 . . . . 1 . . . . 1 5 . Matter Fused 17 | . 3 . . . . . . . . 1 . . . . 6 1 . . . . . . . . 1 . 1 . . . . . 1 . 1 2 . Heat Flow Errors 13 | . . . 1 . . . . . . . . . . . 4 1 . . . . . . . . 2 . . . . . . . 1 . . 4 . Energy Discharges 15 | . . 2 . . . . . . . . . . . . 6 . . 1 . 1 . . . . . 1 . . . 1 . . . . 2 1 . Parts Rejected 1 | . . . . . . . . . . . . . . . 1 . . . . . . . . . . . . . . . . . . . . . . Data Loss (minor) 16 | . . 1 3 . . . . . . . . . . . 3 1 . 1 . 1 . . . . . . . . . 1 . . 1 1 1 2 . Data Loss (major) 7 | . . . . . . . . . . . . . . . 4 1 . . . 1 . . . . . . . . . . . . . . . 1 . Misfires 4 | . . . 1 . . . . . . . . . . . 3 . . . . . . . . . . . . . . . . . . . . . . Alerts 2 | . . . . . . . . . . . . . . . 1 1 . . . . . . . . . . . . . . . . . . . . . Weapon Failures 8 | . 1 . . . . . . . . . . . . 1 5 . . 1 . . . . . . . . . . . . . . . . . . . Overload Shots 15 | . . . . . . . . . . . . . . . . . . . . . . 1 . . . . . . 1 13 . . . . . . . Overflow Damage 3004 | . . . . 537 10 . . 12 368 646 . . . . . . . 2 . . . . . 137 60 . . . . 706 67 244 146 . 17 52 . Projectiles 185 | . . . . . . . . . . . . . . . . . . . . . . . . . . . . . . 116 . . . . 17 52 . Explosions 676 | . . . . . . . . 12 . . . . . . . . . 2 . . . . . 137 60 . . . . 465 . . . . . . . Melee 2143 | . . . . 537 10 . . . 368 646 . . . . . . . . . . . . . . . . . . . 125 67 244 146 . . . . Knockbacks 11 | . . . . 2 . . . . 3 6 . . . . . . . . . . . . . . . . . . . . . . . . . . . Impact 10 | . . . . 2 . . . . 2 6 . . . . . . . . . . . . . . . . . . . . . . . . . . . Kinetic . | . . . . . . . . . . . . . . . . . . . . . . . . . . . . . . . . . . . . . . Secondary 1 | . . . . . . . . . 1 . . . . . . . . . . . . . . . . . . . . . . . . . . . . Self-Inflicted Damage 342 | . . . . . . . . 81 . . . . . . . . . 21 24 . . . . . 21 . . . . 55 . . . 140 . . . Shots 8 | . . . . . . . . 2 . . . . . . . . . 1 1 . . . . . 1 . . . . 2 . . . 1 . . . Rammed . | . . . . . . . . . . . . . . . . . . . . . . . . . . . . . . . . . . . . . . Targets Rammed . | . . . . . . . . . . . . . . . . . . . . . . . . . . . . . . . . . . . . . . Kicked . | . . . . . . . . . . . . . . . . . . . . . . . . . . . . . . . . . . . . . . Crushed . | . . . . . . . . . . . . . . . . . . . . . . . . . . . . . . . . . . . . . . Highest Temperature 367 | 12 34 72 190 367 . 20 . . . 267 36 34 44 81 242 180 20 140 38 4 . 90 . . 163 . . . 12 56 . . 19 71 . 131 . Average Temperature 52 | 5 8 27 51 102 . 12 . . . 110 16 19 21 17 61 43 11 49 14 3 . 53 . . 71 . . . 9 24 . . 19 67 . 59 . Received Heat Transfer 3244 | . 189 159 102 186 24 . . 4 18 46 74 30 66 115 369 75 . 164 37 86 6 . . 114 400 . 26 36 . 200 40 36 198 396 . 48 . Siege Activations 6 | . . . . . . . . . . . . . . . . . . . . . . . . . . . . . . . . . . . . . 6 Total Turns 144 | . . . . . . . . . . . . . . . . . . . . . . . . . . . . . . . . . . . . . 144 Longest Duration 36 | . . . . . . . . . . . . . . . . . . . . . . . . . . . . . . . . . . . . . 36 Robots Corrupted . | . . . . . . . . . . . . . . . . . . . . . . . . . . . . . . . . . . . . . . Combat Hostiles . | . . . . . . . . . . . . . . . . . . . . . . . . . . . . . . . . . . . . . . Parts Fried 43 | . . . . 20 . . . . 5 16 . . . . . . . 1 . . . . . . . . . . . 1 . . . . . . . Impact Corruptions 51 | . . . . 19 . . . . 11 21 . . . . . . . . . . . . . . . . . . . . . . . . . . . Robots Melted 102 | . . . 1 . . . . . . 5 2 2 3 2 9 8 2 5 1 9 1 3 . 4 22 . 3 5 1 1 . . 1 2 1 8 1 Combat Hostiles 85 | . . . 1 . . . . . . 5 2 2 2 1 5 7 2 5 1 8 1 3 . 4 18 . 3 3 1 1 . . 1 1 1 6 1 Parts Melted 391 | . . . 2 2 . . . . . 13 8 4 9 8 51 37 6 25 3 38 6 15 . 22 83 . 13 13 . 13 . . . 4 4 10 2 Heat Transferred 94346 | . . . 1077 1367 . . . . . 4337 2448 1150 2783 3423 15087 5187 1000 3770 1214 7550 900 1900 . 4150 17546 . 2237 3937 2038 6976 . . 222 296 629 2664 458 Parts Sabotaged 1 | . . . . . . . . . . . . . . . . . . . . . . . . . . . . . . . . . . . . 1 . Parts Stolen . | . . . . . . . . . . . . . . . . . . . . . . . . . . . . . . . . . . . . . . Parts Stripped 117 | . . . . . . . . . . . . . . . . . . . . . . . . . . . . . . . 20 40 42 15 . . . Power Chain Reactions 1 | . . . . . . . . . . . . . . . . . . 1 . . . . . . . . . . . . . . . . . . . Alert | -11 -10 -10 -10 -8 -7 -7 -7 -7 -7 -6 -6 -6 -6 -6 -6 -5 -5 -5 -5 -5 -5 -5 -5 -4 -4 -4 -4 -4 -4 -3 -3 -2 -2 -2 -1 -1 -1 ------- Run | Yrd Mat Min Sub Mat Fac Was Fac DSF Gar Fac Ext Cet Arc Hub Gar Fac Was Fac Gar Fac Upp Upp Zhi Pro Fac Was Fac Arm Lab Res Qua Res Tes Sec Acc Com Ac0 Peak Influence 7251 | 15 310 249 . 422 114 102 54 143 487 317 173 150 208 385 1056 522 82 286 586 390 . . . . 413 47 201 293 . 1156 256 226 366 225 1600 7251 . Initial 784 | . 7 24 . . 8 27 54 28 82 189 42 56 42 . 45 411 30 33 45 228 . . . . . 32 25 24 . . 53 37 69 127 47 784 . Average 382 | 4 99 106 . 136 56 61 54 99 265 97 50 122 156 173 703 129 59 139 260 139 . . . . 67 37 46 140 . 271 100 84 168 131 321 4633 . Maximum Alert Level 5 | . 1 1 . 2 . . . . 2 1 . . 1 1 3 2 . 1 2 1 . . . . 2 . 1 1 . 4 1 1 1 1 5 5 . Low Security (%) 70 | 100 92 69 . 76 100 100 100 100 42 90 100 100 41 62 4 78 100 69 32 68 . . . . 90 100 99 80 . 54 89 92 62 96 79 . . Level 1 14 | . 7 30 . 11 . . . . 34 9 . . 58 37 10 18 . 30 58 31 . . . . 8 . . 19 . 22 10 7 37 3 2 . . Level 2 2 | . . . . 11 . . . . 23 . . . . . 27 3 . . 8 . . . . . . . . . . 12 . . . . . 1 . Level 3 3 | . . . . . . . . . . . . . . . 57 . . . . . . . . . . . . . . 7 . . . . 1 6 . Level 4 1 | . . . . . . . . . . . . . . . . . . . . . . . . . . . . . . 2 . . . . 15 6 . Level 5 2 | . . . . . . . . . . . . . . . . . . . . . . . . . . . . . . . . . . . . 36 . High Security 3 | . . . . . . . . . . . . . . . . . . . . . . . . . . . . . . . . . . . . 49 . Max Security . | . . . . . . . . . . . . . . . . . . . . . . . . . . . . . . . . . . . . . . Squads Dispatched 85 | . 4 1 . . 1 . . 1 . 4 1 . . 3 . 5 . 4 . 5 . . . . 17 . 1 2 . 11 1 2 5 4 6 7 . Investigation 20 | . 4 1 . . 1 . . . . 1 1 . . 1 . 3 . 1 . . . . . . 4 . . . . 2 . . . 1 . . . Extermination 31 | . . . . . . . . . . 3 . . . 1 . 1 . 3 . 2 . . . . 10 . 1 2 . 1 1 2 2 1 . 1 . Reinforcement 9 | . . . . . . . . 1 . . . . . . . 1 . . . 3 . . . . 2 . . . . 1 . . . . . 1 . Assault 9 | . . . . . . . . . . . . . . . . . . . . . . . . . 1 . . . . . . . . . 3 5 . Garrison 3 | . . . . . . . . . . . . . . 1 . . . . . . . . . . . . . . . 2 . . . . . . . Intercept 13 | . . . . . . . . . . . . . . . . . . . . . . . . . . . . . . 5 . . 3 2 3 . . Searches Triggered . | . . . . . . . . . . . . . . . . . . . . . . . . . . . . . . . . . . . . . . Construction Impeded . | . . . . . . . . . . . . . . . . . . . . . . . . . . . . . . . . . . . . . . Haulers Reinforced 1 | . . . . . . . . . . . . . . . . . . . . . . . . . . . . . . 1 . . . . . . . Active Scanning Responses . | . . . . . . . . . . . . . . . . . . . . . . . . . . . . . . . . . . . . . . Cargo Convoy Interrupts 7 | . . . . . . . . . . 1 . . . . . 1 . 1 . 1 . . . . 1 . 1 . . 1 . . . . . . . Stealth | -11 -10 -10 -10 -8 -7 -7 -7 -7 -7 -6 -6 -6 -6 -6 -6 -5 -5 -5 -5 -5 -5 -5 -5 -4 -4 -4 -4 -4 -4 -3 -3 -2 -2 -2 -1 -1 -1 --------- Run | Yrd Mat Min Sub Mat Fac Was Fac DSF Gar Fac Ext Cet Arc Hub Gar Fac Was Fac Gar Fac Upp Upp Zhi Pro Fac Was Fac Arm Lab Res Qua Res Tes Sec Acc Com Ac0 Distress Signals 16 | . . . . 4 . . . . . . . 1 . . . 4 . . . . . . . . . . 1 . . 3 . 1 . . 1 1 . Communications Jammed 464 | . . . . . . . . . . 1 . . . 23 . 40 . 11 . 12 . . . . 74 . 21 76 . 7 13 69 31 15 62 9 . Distress Signals 453 | . . . . . . . . . . . . . . 22 . 35 . 10 . 12 . . . . 74 . 19 76 . 7 13 69 30 15 62 9 . Times Spotted 671 | . 18 7 19 26 4 5 . 6 9 34 10 5 10 28 32 22 3 31 10 33 2 6 . 18 76 3 14 16 1 50 13 13 24 12 27 65 19 Peak Tracking Total 16 | . 4 4 10 4 2 5 . 6 5 4 3 5 2 11 4 3 2 9 2 7 1 3 . 8 8 3 3 2 1 10 2 4 4 4 11 16 7 Tactical Retreats 36 | . . 2 5 1 1 . . . 1 3 1 . . 4 1 1 . . . . . . . 3 2 . . . . . . . 2 2 3 4 . Traps | -11 -10 -10 -10 -8 -7 -7 -7 -7 -7 -6 -6 -6 -6 -6 -6 -5 -5 -5 -5 -5 -5 -5 -5 -4 -4 -4 -4 -4 -4 -3 -3 -2 -2 -2 -1 -1 -1 ------- Run | Yrd Mat Min Sub Mat Fac Was Fac DSF Gar Fac Ext Cet Arc Hub Gar Fac Was Fac Gar Fac Upp Upp Zhi Pro Fac Was Fac Arm Lab Res Qua Res Tes Sec Acc Com Ac0 Traps Triggered 34 | . 2 . . 1 1 . . . 1 4 . . . 1 6 6 . 1 1 1 . . . . 3 . . 2 . . . . . . 3 1 . Indirectly . | . . . . . . . . . . . . . . . . . . . . . . . . . . . . . . . . . . . . . . Trap Hack Attempts 90 | . . . . . . . . . . 16 . . . . . 19 . 27 . 1 . . . . 27 . . . . . . . . . . . . Triggered 2 | . . . . . . . . . . . . . . . . . . 1 . 1 . . . . . . . . . . . . . . . . . Disarmed 5 | . . . . . . . . . . . 4 . . . . . . 1 . . . . . . . . . . . . . . . . . . . Reprogrammed 58 | . . . . . . . . . . 6 . . . . . 9 . 8 . 7 . . . . 12 . . 10 . . 6 . . . . . . Reused 28 | . . 1 . . . . . . . 2 . . . . . 3 . 9 . . . . . . 4 . 3 1 . 5 . . . . . . . Traps Extracted 29 | . . . . . . . . . . 6 . . . . . 8 . 3 . 1 . . . . 11 . . . . . . . . . . . . Installed 32 | . . 1 . . . . . . . 2 . . . . . 9 . 8 . . . . . . 4 . 3 . . 5 . . . . . . . Triggered 31 | . . 1 . . . . . . . 3 . . . . . 5 . 9 . . . . . . 4 . 3 1 . 5 . . . . . . . Most Traps Carried 8 | . . 2 2 2 2 2 2 2 2 8 6 6 6 6 6 6 5 8 . 1 1 1 1 1 8 8 8 5 5 5 . . . . . . . Objects Rigged 6 | . . . . . . . . . . . . . . . . . . . . . . . . . . . 6 . . . . . . . . . . Machines | -11 -10 -10 -10 -8 -7 -7 -7 -7 -7 -6 -6 -6 -6 -6 -6 -5 -5 -5 -5 -5 -5 -5 -5 -4 -4 -4 -4 -4 -4 -3 -3 -2 -2 -2 -1 -1 -1 ---------- Run | Yrd Mat Min Sub Mat Fac Was Fac DSF Gar Fac Ext Cet Arc Hub Gar Fac Was Fac Gar Fac Upp Upp Zhi Pro Fac Was Fac Arm Lab Res Qua Res Tes Sec Acc Com Ac0 Machines Disabled 109 | . . . . . . . . 1 1 . 1 . . . 4 3 . 5 3 . . . . . 2 . . 3 2 2 6 . 2 26 16 18 14 Max in Single Turn 22 | . . . . . . . . 1 1 . . . . . 1 1 . 3 2 . . . . . 2 . . 1 1 1 1 . 1 22 5 2 3 Garrison Access 16 | . . . . . . . . . . 2 . . . . . 2 . . . 1 . . . . 2 . 2 . . 2 1 . 1 . 3 . . Garrison Relay 11 | . . . . . . . . . 1 . . . . . 7 . . . 3 . . . . . . . . . . . . . . . . . . Phase Generator 3 | . . . . . . . . . . . . . . . 1 . . . 1 . . . . . . . . . . . . . . . . 1 . Network Hub 4 | . . . . . . . . . . . . . . 4 . . . . . . . . . . . . . . . . . . . . . . . Energy Cycler 1 | . . . . . . . . . . . . . . . . . . . . . . . . . . . . . . . . . . . 1 . . Machines Repaired . | . . . . . . . . . . . . . . . . . . . . . . . . . . . . . . . . . . . . . . Machines Dismantled 22 | . . . . . . . . . . . . . . 4 5 . . 1 3 . . . . . 9 . . . . . . . . . . . . Machines Sabotaged . | . . . . . . . . . . . . . . . . . . . . . . . . . . . . . . . . . . . . . . Overloaded Fab Kills . | . . . . . . . . . . . . . . . . . . . . . . . . . . . . . . . . . . . . . . Hacking | -11 -10 -10 -10 -8 -7 -7 -7 -7 -7 -6 -6 -6 -6 -6 -6 -5 -5 -5 -5 -5 -5 -5 -5 -4 -4 -4 -4 -4 -4 -3 -3 -2 -2 -2 -1 -1 -1 --------- Run | Yrd Mat Min Sub Mat Fac Was Fac DSF Gar Fac Ext Cet Arc Hub Gar Fac Was Fac Gar Fac Upp Upp Zhi Pro Fac Was Fac Arm Lab Res Qua Res Tes Sec Acc Com Ac0 Machines Accessed 251 | . 11 1 2 10 4 . 1 . 2 20 7 1 . 10 1 20 . 20 1 20 1 . 4 . 32 . 10 12 2 14 11 4 5 15 7 3 . Terminals 148 | . 8 . . 7 2 . 1 . 2 8 7 1 . 9 1 9 . 11 1 9 1 . . . 17 . 7 8 . 6 9 2 3 14 2 3 . Fabricators 26 | . . . . . 1 . . . . 4 . . . . . 4 . 3 . 2 . . . . 4 . . 3 . 2 . 1 . . 2 . . Repair Stations 9 | . 1 . . 1 . . . . . 2 . . . . . . . 1 . 1 . . . . 1 . . 1 . . 1 . . . . . . Recycling Units 23 | . 2 . . . 1 . . . . 2 . . . . . 3 . 2 . 5 . . . . 5 . . . . 2 . . . . 1 . . Scanalyzers 15 | . . . . 2 . . . . . 2 . . . . . 1 . 2 . 2 . . . . 2 . . . . 1 . 1 1 1 . . . Garrison Access 21 | . . . . . . . . . . 2 . . . 1 . 3 . 1 . 1 . . . . 3 . 3 . . 3 1 . 1 . 2 . . Total Hacks 1178 | . 52 1 5 45 24 . 1 . 9 75 18 5 . 38 3 116 . 109 19 86 2 . 17 . 148 . 42 82 14 64 41 32 20 62 23 25 . Successful 881 | . 33 1 5 37 19 . 1 . 2 60 14 1 . 32 2 98 . 96 9 81 2 . 17 . 112 . 36 54 14 41 25 13 11 39 15 11 . Failed 297 | . 19 . . 8 5 . . . 7 15 4 4 . 6 1 18 . 13 10 5 . . . . 36 . 6 28 . 23 16 19 9 23 8 14 . Catastrophic 45 | . 2 . . . . . . . 3 . 1 . . 1 . 3 . . 1 . . . . . 2 . 2 4 . 3 5 4 . 6 3 5 . Database Lockouts . | . . . . . . . . . . . . . . . . . . . . . . . . . . . . . . . . . . . . . . Manual 618 | . 34 . . 27 10 . . . 6 24 15 1 . 22 2 70 . 54 18 36 . . . . 77 . 26 31 1 38 25 22 12 40 9 18 . Terminals 789 | . 48 . . 35 12 . 1 . 9 27 18 5 . 35 3 72 . 59 19 42 2 . . . 88 . 37 55 . 47 38 26 18 61 7 25 . Fabricators 145 | . . . . . 8 . . . . 22 . . . . . 19 . 21 . 12 . . . . 20 . . 23 . 7 . 4 . . 9 . . Repair Stations 20 | . 1 . . 2 . . . . . 4 . . . . . . . 3 . 2 . . . . 2 . . 4 . . 2 . . . . . . Recycling Units 83 | . 3 . . . 4 . . . . 9 . . . . . 12 . 10 . 17 . . . . 17 . . . . 6 . . . . 5 . . Scanalyzers 65 | . . . . 8 . . . . . 10 . . . . . 7 . 12 . 12 . . . . 11 . . . . 1 . 2 1 1 . . . Garrison Access 39 | . . . . . . . . . . 3 . . . 3 . 6 . 4 . 1 . . . . 10 . 5 . . 3 1 . 1 . 2 . . Terminal Hacks 424 | . 25 1 5 22 9 . 1 . 2 13 9 1 . 22 1 43 . 35 9 27 2 . 17 . 38 . 18 27 14 17 15 8 5 25 3 10 . Record 24 | . . . 4 . . . . . . . . . . . . . . . . . 2 . 5 . . . . . 13 . . . . . . . . Part Schematic 74 | . . . . 6 6 . . . . 4 2 . . 1 . 13 . 4 3 6 . . 4 . 9 . . 5 . 3 3 1 . 4 . . . Robot Schematic 14 | . 3 . . . . . . . . . . . . . . 1 . 4 . . . . . . 1 . 2 1 . . . . . 2 . . . Robot Analysis 25 | . 2 . . . . . . . . 1 1 . . 2 . . . 3 3 2 . . 4 . 1 . . 2 . . 1 . 2 . . 1 . Prototype ID Bank 64 | . 10 . . 4 . . . . . 2 . . . 3 . 14 . 7 . 4 . . 4 . 3 . 4 2 . 1 2 . . 2 . 2 . Open Door 9 | . . 1 . . . . . . . . 1 1 . . . . . . . . . . . . . . . . . 1 . . . 5 . . . Open DSF 3 | . . . . . . . 1 . . . . . . . . . . 2 . . . . . . . . . . . . . . . . . . . Level Access Points 14 | . 1 . . 1 . . . . . . . . . 1 . 1 . 1 . 1 . . . . 1 . 1 1 . . 1 1 1 1 . 1 . Branch Access Points 14 | . 1 . . 2 1 . . . . 1 1 . . . . . . 1 . 1 . . . . 1 . 1 . . 1 . 2 . . 1 . . Emergency Access Points 5 | . . . . . . . . . 1 . . . . . 1 . . . . . . . . . . . 1 . . 1 1 . . . . . . Machine Index 21 | . 1 . . 2 1 . . . . 1 1 . . 1 . 2 . 1 . 1 . . . . 1 . 1 2 . 1 1 1 1 1 . 1 . Terminal Index 6 | . . . . . 1 . . . . 1 . . . . . . . 1 . . . . . . . . 1 . . . . . . . 1 1 . Garrison Index 1 | . . . . 1 . . . . . . . . . . . . . . . . . . . . . . . . . . . . . . . . . Unreport Threat 32 | . 2 . . 3 . . . . . 1 1 . . 1 . 4 . 1 . 2 . . . . 5 . 1 1 . 7 . . . 2 . 1 . Locate Traps 28 | . 2 . . 1 . . . . . 1 . . . 2 . 2 . 3 . 3 . . . . 3 . 2 2 . . 2 2 . 2 1 . . Disarm Traps 1 | . . . . . . . . . . . 1 . . . . . . . . . . . . . . . . . . . . . . . . . . Reprogram Traps 6 | . . . . . . . . . . . . . . . . . . . . 2 . . . . . . . 3 . . 1 . . . . . . Maintenance Status 1 | . . . . . . . . . . . . . . 1 . . . . . . . . . . . . . . . . . . . . . . . Security Status 1 | . . . . . . . . . . . . . . . . . . . . . . . . . . . . 1 . . . . . . . . . Surveillance Status 1 | . . . . . . . . . . . . . . . . . . . . . . . . . . . . 1 . . . . . . . . . Patrol Status 1 | . . . . . . . . . . . . . . 1 . . . . . . . . . . . . . . . . . . . . . . . Transport Status 1 | . . . . . . . . . . . . . . . . . . . . . . . . . . . . 1 . . . . . . . . . Investigation Status 1 | . . . . . . . . . . . . . . . . . . 1 . . . . . . . . . . . . . . . . . . . Extermination Status 1 | . . . . . . . . . . . . . . 1 . . . . . . . . . . . . . . . . . . . . . . . Reinforcement Status 1 | . . . . . . . . . . . . . . 1 . . . . . . . . . . . . . . . . . . . . . . . Intercept Status 1 | . . . . . . . . . . . . . . . . . . . . . . . . . . . . . . 1 . . . . . . . Recall Investigation 1 | . . . . . . . . . . 1 . . . . . . . . . . . . . . . . . . . . . . . . . . . Recall Extermination 12 | . . . . . . . . . . . . . . 1 . . . 1 . 1 . . . . 5 . 1 1 . . 1 . . 1 . . . Hauler Manifests 5 | . . . . . . . . . . . . . . . . 1 . 1 . . . . . . 2 . 1 . . . . . . . . . . Registered Components 4 | . 1 . . . . . . . . . . . . 1 . 1 . . . . . . . . . . . . . . . . . . . 1 . Registered Prototypes 3 | . . . . . . . . . . . . . . . . 1 . . . 1 . . . . . . . 1 . . . . . . . . . Zone Layout 43 | . 2 . . 2 . . . . . . 1 . . 5 . 3 . 4 . 3 . . . . 6 . 2 3 . 1 2 1 1 5 . 2 . Garrison Registry 2 | . . . . . . . . . 1 . . . . . . . . . 1 . . . . . . . . . . . . . . . . . . Patrol Navigation 1 | . . . . . . . . . . . . . . . . . . . 1 . . . . . . . . . . . . . . . . . . Security Stations 1 | . . . . . . . . . . . . . . . . . . . 1 . . . . . . . . . . . . . . . . . . Derelict Proto ID Bank 1 | . . . 1 . . . . . . . . . . . . . . . . . . . . . . . . . . . . . . . . . . Release Object 1 | . . . . . . . . . . . . . . . . . . . . . . . . . . . . . 1 . . . . . . . . Fabricator Hacks 96 | . . . . . 4 . . . . 17 . . . . . 12 . 15 . 10 . . . . 13 . . 13 . 6 . 2 . . 4 . . Network Status 5 | . . . . . . . . . . 1 . . . . . 1 . 1 . . . . . . 1 . . 1 . . . . . . . . . Load Schematic 45 | . . . . . 2 . . . . 8 . . . . . 5 . 7 . 5 . . . . 6 . . 6 . 3 . 1 . . 2 . . Build 46 | . . . . . 2 . . . . 8 . . . . . 6 . 7 . 5 . . . . 6 . . 6 . 3 . 1 . . 2 . . Repair Station Hacks 19 | . 1 . . 2 . . . . . 4 . . . . . . . 2 . 2 . . . . 2 . . 4 . . 2 . . . . . . Scan Component 9 | . . . . 1 . . . . . 2 . . . . . . . 1 . 1 . . . . 1 . . 2 . . 1 . . . . . . Repair 9 | . . . . 1 . . . . . 2 . . . . . . . 1 . 1 . . . . 1 . . 2 . . 1 . . . . . . Refit 1 | . 1 . . . . . . . . . . . . . . . . . . . . . . . . . . . . . . . . . . . . Recycling Unit Hacks 24 | . 1 . . . 1 . . . . 2 . . . . . 4 . 3 . 5 . . . . 4 . . . . 3 . . . . 1 . . Process 1 | . . . . . . . . . . . . . . . . 1 . . . . . . . . . . . . . . . . . . . . . Report Inventory 18 | . 1 . . . 1 . . . . 2 . . . . . 3 . 2 . 4 . . . . 3 . . . . 2 . . . . . . . Retrieve Components 5 | . . . . . . . . . . . . . . . . . . 1 . 1 . . . . 1 . . . . 1 . . . . 1 . . Scanalyzer 60 | . . . . 8 . . . . . 10 . . . . . 7 . 11 . 10 . . . . 11 . . . . 1 . 1 . 1 . . . Insert Component 29 | . . . . 4 . . . . . 5 . . . . . 3 . 4 . 4 . . . . 6 . . . . 1 . 1 . 1 . . . Analyze 31 | . . . . 4 . . . . . 5 . . . . . 4 . 7 . 6 . . . . 5 . . . . . . . . . . . . Garrison Access Hacks 21 | . . . . . . . . . . 3 . . . 1 . 3 . 1 . 1 . . . . 3 . 3 . . 2 1 . 1 . 2 . . Unlock Access 6 | . . . . . . . . . . . . . . 1 . 1 . 1 . . . . . . 2 . 1 . . . . . . . . . . Seal Access 14 | . . . . . . . . . . 2 . . . . . 2 . . . 1 . . . . 1 . 2 . . 2 1 . 1 . 2 . . Coupler Status 1 | . . . . . . . . . . 1 . . . . . . . . . . . . . . . . . . . . . . . . . . . Unauthorized Hacks 237 | . 6 . . 5 5 . . . . 11 5 . . 9 1 29 . 29 . 26 . . . . 41 . 15 10 . 12 7 2 5 13 5 1 . Terminals 138 | . 4 . . 5 1 . . . . 5 5 . . 7 1 12 . 13 . 13 . . . . 19 . 13 8 . 7 7 . 4 13 . 1 . Track 50 | . 1 . . 1 . . . . . 1 1 . . 1 . 4 . 6 . 8 . . . . 4 . 5 4 . 2 3 . 3 6 . . . Assimilate 22 | . . . . 1 . . . . . 2 . . . 3 . 1 . 1 . . . . . . 7 . 1 . . 1 2 . 1 2 . . . Botnet 44 | . 2 . . 2 1 . . . . 2 2 . . 2 1 5 . 5 . 4 . . . . 5 . 5 2 . 2 1 . . 2 . 1 . Detonate 3 | . . . . . . . . . . . . . . . . . . . . . . . . . 1 . 1 1 . . . . . . . . . Disrupt 7 | . . . . . . . . . . . 1 . . 1 . 1 . . . . . . . . 1 . . . . . 1 . . 2 . . . Operators 12 | . 1 . . 1 . . . . . . 1 . . . . 1 . 1 . 1 . . . . 1 . 1 1 . 2 . . . 1 . . . Fabricators 27 | . . . . . 1 . . . . 1 . . . . . 6 . 6 . 2 . . . . 4 . . 2 . 1 . 2 . . 2 . . Report 6 | . . . . . . . . . . 1 . . . . . 2 . 2 . . . . . . . . . 1 . . . . . . . . . Prioritize 16 | . . . . . 1 . . . . . . . . . . 2 . 3 . 2 . . . . 3 . . 1 . 1 . 1 . . 2 . . Haulers 5 | . . . . . . . . . . . . . . . . 2 . 1 . . . . . . 1 . . . . . . 1 . . . . . Repair Stations 1 | . . . . . . . . . . . . . . . . . . 1 . . . . . . . . . . . . . . . . . . . Mechanics 1 | . . . . . . . . . . . . . . . . . . 1 . . . . . . . . . . . . . . . . . . . Recycling Units 52 | . 2 . . . 3 . . . . 5 . . . . . 8 . 6 . 11 . . . . 11 . . . . 3 . . . . 3 . . Reject 21 | . . . . . 1 . . . . 2 . . . . . 3 . 2 . 5 . . . . 5 . . . . 2 . . . . 1 . . Recyclers 8 | . . . . . 1 . . . . 1 . . . . . 1 . 2 . 1 . . . . 1 . . . . . . . . . 1 . . Mask 20 | . . . . . 1 . . . . 2 . . . . . 3 . 2 . 5 . . . . 5 . . . . 1 . . . . 1 . . Tunnel 3 | . 2 . . . . . . . . . . . . . . 1 . . . . . . . . . . . . . . . . . . . . . Scanalyzers 1 | . . . . . . . . . . . . . . . . . . . . . . . . . . . . . . . . . 1 . . . . Researchers 1 | . . . . . . . . . . . . . . . . . . . . . . . . . . . . . . . . . 1 . . . . Garrison Access 18 | . . . . . . . . . . . . . . 2 . 3 . 3 . . . . . . 7 . 2 . . 1 . . . . . . . Broadcast 4 | . . . . . . . . . . . . . . 1 . . . 1 . . . . . . 2 . . . . . . . . . . . . Reprogram 7 | . . . . . . . . . . . . . . 1 . 1 . 1 . . . . . . 2 . 1 . . 1 . . . . . . . Intercept 3 | . . . . . . . . . . . . . . . . 1 . . . . . . . . 2 . . . . . . . . . . . . Watchers 4 | . . . . . . . . . . . . . . . . 1 . 1 . . . . . . 1 . 1 . . . . . . . . . . Data Cores Recovered 6 | . . . . . . . . . . . . . . 1 . . . . . . . . . . . . 1 . . . 2 . . 1 . 1 . Used 3 | . . . . . . . . . . . . . . 1 . . . . . . . . . . . . . . . . . . . 1 . 1 . Hacking Detections 147 | . 8 . . 8 4 . 1 . 2 15 5 1 . 8 . 13 . 9 1 7 . . . . 17 . 7 7 . 8 6 2 2 9 4 3 . Full Trace Events 13 | . 2 . . . 1 . . . 2 1 1 . . . . 1 . . . . . . . . 2 . . . . 2 . . . 1 . . . Feedback Events 1 | . . . . . . . . . . . . . . . . . . . . . . . . . . . . . . 1 . . . . . . . Corruption 1 | . . . . . . . . . . . . . . . . . . . . . . . . . . . . . . 1 . . . . . . . Feedback Blocked . | . . . . . . . . . . . . . . . . . . . . . . . . . . . . . . . . . . . . . . Robot Schematics Acquired 18 | . 3 . . . . . . . . . . . . . . 1 . 4 . . . . . . 1 . 2 1 . . . . 1 5 . . . Robots Built 4 | . . . . . . . . . . . . . . . . . . . . . . . . . . . . 4 . . . . . . . . . Authchips . | . . . . . . . . . . . . . . . . . . . . . . . . . . . . . . . . . . . . . . Time 370 | . . . . . . . . . . . . . . . . . . . . . . . . . . . . 370 . . . . . . . . . Total Robot Build Rating 23 | . . . . . . . . . . . . . . . . . . . . . . . . . . . . 23 . . . . . . . . . Part Schematics Acquired 99 | . . . . 10 6 . . . . 9 2 . . 1 . 16 . 8 3 10 . . 4 . 14 . . 5 . 3 3 1 . 4 . . . Parts Built 59 | . . . . . 4 . . . . 15 . . . . . 9 . 7 . 7 . . . . 9 . . 1 . 4 . 1 . . 2 . . Authchips . | . . . . . . . . . . . . . . . . . . . . . . . . . . . . . . . . . . . . . . Time 2728 | . . . . . 60 . . . . 401 . . . . . 386 . 536 . 414 . . . . 358 . . 152 . 171 . 102 . . 148 . . Total Part Build Rating 346 | . . . . . 14 . . . . 73 . . . . . 51 . 57 . 45 . . . . 47 . . 5 . 28 . 8 . . 18 . . Parts Repaired 9 | . . . . 1 . . . . . 2 . . . . . . . 1 . 1 . . . . 1 . . 2 . . 1 . . . . . . Time 467 | . . . . 32 . . . . . 132 . . . . . . . 39 . 51 . . . . 28 . . 77 . . 108 . . . . . . Parts Recycled . | . . . . . . . . . . . . . . . . . . . . . . . . . . . . . . . . . . . . . . Recycled Matter . | . . . . . . . . . . . . . . . . . . . . . . . . . . . . . . . . . . . . . . Retrieved Matter . | . . . . . . . . . . . . . . . . . . . . . . . . . . . . . . . . . . . . . . Retrieved Components 24 | . . . . . . . . . . . . . . . . . . 8 . 2 . . . . 3 . . . . 9 . . . . 2 . . Parts Scanalyzed 25 | . . . . 4 . . . . . 5 . . . . . 3 . 4 . 4 . . . . 5 . . . . . . . . . . . . Part Schematics Acquired 25 | . . . . 4 . . . . . 5 . . . . . 3 . 4 . 4 . . . . 5 . . . . . . . . . . . . Parts Damaged 4 | . . . . . . . . . . 2 . . . . . . . 1 . 1 . . . . . . . . . . . . . . . . . Bothacking | -11 -10 -10 -10 -8 -7 -7 -7 -7 -7 -6 -6 -6 -6 -6 -6 -5 -5 -5 -5 -5 -5 -5 -5 -4 -4 -4 -4 -4 -4 -3 -3 -2 -2 -2 -1 -1 -1 ------------ Run | Yrd Mat Min Sub Mat Fac Was Fac DSF Gar Fac Ext Cet Arc Hub Gar Fac Was Fac Gar Fac Upp Upp Zhi Pro Fac Was Fac Arm Lab Res Qua Res Tes Sec Acc Com Ac0 Used RIF Installer 3 | . . . . . . . . . 1 . . . . . 1 . . . 1 . . . . . . . . . . . . . . . . . . Command Fork 1 | . . . . . . . . . . . . . . . . . . . 1 . . . . . . . . . . . . . . . . . . Watcher Feeds 1 | . . . . . . . . . . . . . . . 1 . . . . . . . . . . . . . . . . . . . . . . Robots Hacked 53 | . . . . . . . . . . 11 . . . . 1 4 . 3 1 7 1 1 3 1 6 . 3 1 1 3 . . 2 2 . 2 . Non-combat 43 | . . . . . . . . . . 10 . . . . . 4 . 3 . 7 1 1 . 1 6 . 3 1 . 3 . . . 2 . 1 . Combat 10 | . . . . . . . . . . 1 . . . . 1 . . . 1 . . . 3 . . . . . 1 . . . 2 . . 1 . Robot Hacks Applied 64 | . . . . . . . . . . 12 . . . . 1 5 . 4 1 11 1 1 3 1 8 . 3 2 1 4 . . 2 2 . 2 . parse_system 19 | . . . . . . . . . . 2 . . . . . 1 . 1 1 2 1 1 3 1 . . . 1 1 . . . 2 . . 2 . no_distress 1 | . . . . . . . . . . . . . . . . . . . . . . . . . 1 . . . . . . . . . . . . generate_anomaly 1 | . . . . . . . . . . . . . . . . . . . . . . . . . . . 1 . . . . . . . . . . find_chute 9 | . . . . . . . . . . 6 . . . . . 1 . . . . . . . . 2 . . . . . . . . . . . . hold_bot 1 | . . . . . . . . . . . . . . . . . . . . 1 . . . . . . . . . . . . . . . . . ignore_repairs 1 | . . . . . . . . . . . . . . . . 1 . . . . . . . . . . . . . . . . . . . . . randomize_corridors 3 | . . . . . . . . . . . . . . . . . . . . . . . . . 2 . 1 . . . . . . . . . . find_fabricator 2 | . . . . . . . . . . 1 . . . . . . . . . . . . . . . . . . . 1 . . . . . . . drop_inventory 6 | . . . . . . . . . . 1 . . . . . . . 2 . 1 . . . . . . . . . 1 . . . 1 . . . locate_stockpiles 1 | . . . . . . . . . . 1 . . . . . . . . . . . . . . . . . . . . . . . . . . . find_recycling 3 | . . . . . . . . . . . . . . . . 1 . . . 1 . . . . 1 . . . . . . . . . . . . ignore_parts 3 | . . . . . . . . . . . . . . . . . . . . 1 . . . . 2 . . . . . . . . . . . . release_backups 1 | . . . . . . . . . . 1 . . . . . . . . . . . . . . . . . . . . . . . . . . . purge_threat 2 | . . . . . . . . . . . . . . . . 1 . . . 1 . . . . . . . . . . . . . . . . . locate_traps 1 | . . . . . . . . . . . . . . . . . . . . 1 . . . . . . . . . . . . . . . . . block_reporting 4 | . . . . . . . . . . . . . . . . . . . . 2 . . . . . . . . . 1 . . . 1 . . . map_route 3 | . . . . . . . . . . . . . . . . . . 1 . . . . . . . . 1 . . 1 . . . . . . . mark_security 1 | . . . . . . . . . . . . . . . . . . . . . . . . . . . . 1 . . . . . . . . . redirect_shields 1 | . . . . . . . . . . . . . . . . . . . . 1 . . . . . . . . . . . . . . . . . formatsys_high 1 | . . . . . . . . . . . . . . . 1 . . . . . . . . . . . . . . . . . . . . . . Manual 1 | . . . . . . . . . . . . . . . . . . . . . . . . . . . . . . . . . . . . 1 . Relay Couplers Released 23 | . . . . . . . . . 2 . . . . . 13 . . . 6 . . . . . 1 . . . . . . . . . 1 . . Machine Destruction 23 | . . . . . . . . . 2 . . . . . 13 . . . 6 . . . . . 1 . . . . . . . . . 1 . . Attached 4 | . . . . . . . . . . 1 . . . . 2 . . . 1 . . . . . . . . . . . . . . . . . . Fabnet Peak Effective % . | . . . . . . . . . . . . . . . . . . . . . . . . . . . . . . . . . . . . . . Robots Rewired 19 | . . . 1 1 . . . . . . . . . . 3 . . . 5 . . . . . . . . 9 . . . . . . . . . Allies Hacked 1 | . . . . . . . . . . . . . . . . . . . . 1 . . . . . . . . . . . . . . . . . Hacks Repelled . | . . . . . . . . . . . . . . . . . . . . . . . . . . . . . . . . . . . . . . Allies | -11 -10 -10 -10 -8 -7 -7 -7 -7 -7 -6 -6 -6 -6 -6 -6 -5 -5 -5 -5 -5 -5 -5 -5 -4 -4 -4 -4 -4 -4 -3 -3 -2 -2 -2 -1 -1 -1 -------- Run | Yrd Mat Min Sub Mat Fac Was Fac DSF Gar Fac Ext Cet Arc Hub Gar Fac Was Fac Gar Fac Upp Upp Zhi Pro Fac Was Fac Arm Lab Res Qua Res Tes Sec Acc Com Ac0 Total Allies 70 | . . . 1 2 . . . . . 2 1 1 . 1 4 1 19 3 5 . . . . . 10 1 1 16 . . . . 1 1 . . . Largest Group 19 | . . . 1 2 . . . . . 1 2 1 1 1 4 4 19 2 3 2 . . . . 6 1 1 9 9 8 . . 1 1 . . . Highest-Rated Group 684 | . . . 19 25 . . . . . 26 185 159 159 29 268 265 684 108 198 198 . . . . 203 46 26 428 428 381 . . 10 45 . . . Highest-Rated Ally 159 | . . . 19 15 . . . . . 26 159 159 159 29 116 116 50 54 99 99 . . . . 56 46 26 65 56 56 . . 10 45 . . . Total Orders 32 | . . . . . . . . . . . . . . . . . . . . 2 . . . . . . 4 . 8 5 . . . . . . 13 STAY 4 | . . . . . . . . . . . . . . . . . . . . 2 . . . . . . 1 . 1 . . . . . . . . FOLLOW 7 | . . . . . . . . . . . . . . . . . . . . . . . . . . . 1 . 4 2 . . . . . . . DROP 1 | . . . . . . . . . . . . . . . . . . . . . . . . . . . . . . 1 . . . . . . . PICKUP 3 | . . . . . . . . . . . . . . . . . . . . . . . . . . . . . 1 2 . . . . . . . COLLECT 2 | . . . . . . . . . . . . . . . . . . . . . . . . . . . . . 2 . . . . . . . . EXPLORE 15 | . . . . . . . . . . . . . . . . . . . . . . . . . . . 2 . . . . . . . . . 13 Ally Attacks 292 | . . . 7 1 . . . . . . 8 9 1 7 22 26 62 7 13 33 . . . . 21 . . 32 20 23 . . . . . . . Total Damage 11138 | . . . 98 15 . . . . . . 287 369 . 133 858 1197 2719 340 369 945 . . . . 597 . . 1406 837 968 . . . . . . . Kills 58 | . . . 1 . . . . . . . 2 3 . 1 8 9 7 3 4 9 . . . . 2 . . 6 . 3 . . . . . . . Allies Corrupted 2 | . . . . . . . . . . . . . . . . . . . 1 . . . . . . . . . . 1 . . . . . . . Allies Melted . | . . . . . . . . . . . . . . . . . . . . . . . . . . . . . . . . . . . . . . Intel | -11 -10 -10 -10 -8 -7 -7 -7 -7 -7 -6 -6 -6 -6 -6 -6 -5 -5 -5 -5 -5 -5 -5 -5 -4 -4 -4 -4 -4 -4 -3 -3 -2 -2 -2 -1 -1 -1 ------- Run | Yrd Mat Min Sub Mat Fac Was Fac DSF Gar Fac Ext Cet Arc Hub Gar Fac Was Fac Gar Fac Upp Upp Zhi Pro Fac Was Fac Arm Lab Res Qua Res Tes Sec Acc Com Ac0 Robot Analysis Total 25 | . 2 . . . . . . . . 1 1 . . 2 . . . 3 3 2 . . 4 . 1 . . 2 . . 1 . 2 . . 1 . Derelict Logs Recovered 8 | . . 2 1 . . . . . . . . . . . . . . . . . 2 2 . 1 . . . . . . . . . . . . . Drone Launches 15 | . . . . . . . . . . . . . . . . . . . . . . . . . . . 2 . . . . . . . . . 13 Drone Recoveries 14 | . . . . . . . . . . . . . . . . . . . . . . . . . . . 2 . . . . . . . . . 12 Exploration | -11 -10 -10 -10 -8 -7 -7 -7 -7 -7 -6 -6 -6 -6 -6 -6 -5 -5 -5 -5 -5 -5 -5 -5 -4 -4 -4 -4 -4 -4 -3 -3 -2 -2 -2 -1 -1 -1 ------------- Run | Yrd Mat Min Sub Mat Fac Was Fac DSF Gar Fac Ext Cet Arc Hub Gar Fac Was Fac Gar Fac Upp Upp Zhi Pro Fac Was Fac Arm Lab Res Qua Res Tes Sec Acc Com Ac0 Turns Passed 31172 | 120 616 613 930 965 189 48 9 32 244 2698 557 71 477 403 1073 1447 76 1395 557 1333 380 561 48 1208 5105 24 1013 901 728 1285 679 536 776 639 839 2126 471 Spaces Moved 30776 | 66 765 596 1198 956 335 97 31 80 344 2325 359 110 118 813 945 1816 233 1818 749 2165 969 924 153 844 3103 112 1145 1050 483 1344 582 418 891 807 719 1214 99 Core 220 | 11 . . . 1 . . . . . . . . 28 . . 83 . . . . . . . . 1 1 . . . . 11 7 45 3 20 . 9 Treads 750 | 37 1 . . . . . . . . . . . . . . . . . . . . . . . . . . . . . . . . . . 622 90 Legs . | . . . . . . . . . . . . . . . . . . . . . . . . . . . . . . . . . . . . . . Wheels 340 | 18 322 . . . . . . . . . . . . . . . . . . . . . . . . . . . . . . . . . . . . Hover . | . . . . . . . . . . . . . . . . . . . . . . . . . . . . . . . . . . . . . . Flight 29466 | . 442 596 1198 955 335 97 31 80 344 2325 359 110 90 813 945 1733 233 1818 749 2165 969 924 153 844 3102 111 1145 1050 483 1344 571 411 846 804 699 592 . Fastest Speed 5 | 50 34 34 34 29 29 29 29 29 25 16 16 16 16 6 16 13 13 5 18 5 18 18 18 18 5 18 5 18 18 15 12 12 5 15 73 73 100 Average Speed 29 | 119 54 34 34 31 29 29 29 29 28 20 16 16 35 15 16 25 13 15 18 17 18 18 18 18 18 18 18 18 46 25 52 26 27 50 75 121 139 Slowest Speed 250 | 160 160 34 114 114 87 29 29 29 29 62 16 16 100 16 16 150 13 22 18 18 73 18 21 18 100 100 76 73 73 76 250 200 200 200 150 215 143 Overloaded Moves 822 | . . . . . . . . . . . . . . 13 . . . 11 . 2 . . . . 19 . 12 . . 116 138 116 77 318 . . . Propulsion Burnouts . | . . . . . . . . . . . . . . . . . . . . . . . . . . . . . . . . . . . . . . Robots Hopped 213 | . 3 11 3 5 3 . . . . 9 2 . 2 8 22 7 . 20 . 40 . 2 . . 42 . 10 1 . 13 . 9 1 . . . . Cave-ins Triggered 1 | . . . . . . . . . . . 1 . . . . . . . . . . . . . . . . . . . . . . . . . . Teleports 1 | . . . . . . . . . . . . . . . . . . . . . . . . . . . . . . . . . . . . 1 . Exploration Rate (%) 59 | 5 98 97 63 72 9 70 1 64 55 44 58 60 72 72 94 43 82 40 60 38 97 97 60 92 71 73 27 62 99 22 81 14 83 64 35 57 34 Regions Visited 37 Branch Regions 17 Pre-discovered Areas 8 | . 2 . 1 . . . . . . . . . . . . 1 . . . . . . 3 1 . . . . . . . . . . . . . Known Exits Taken 27 | 1 1 1 1 1 . . 1 . . 1 1 1 1 1 . . . 1 . 1 1 1 1 1 . . 1 1 1 1 1 1 1 1 1 1 . Unknown Exits Taken . | . . . . . . . . . . . . . . . . . . . . . . . . . . . . . . . . . . . . . . Scrap Searched 13 | . . 1 4 . . . . . . . . . . . . . . . . . 3 4 . 1 . . . . . . . . . . . . . Spaces Dug 3442 | . . . . 1 . . . . . 16 7 . . 7 . 4 . 8 1 1 . 1 . 1 32 . 1 1 1 50 2 . 2 3 7 3133 163 Terrain Destroyed 10806 | . . . . 1 . 23 . 26 . 16 15 . . 9 . 4 . 41 78 1 . 1 . 16 32 . 1 1 1 99 2 . 2 150 881 6385 3021 Melee 18 | . . . . 1 . . . . . 8 . . . . . . . . . . . . . . 2 . . . . 1 2 . 2 2 . . . Projectile 10374 | . . . . . . . . . . 8 15 . . 9 . 4 . 10 3 1 . 1 . 1 13 . 1 1 1 12 . . . 148 806 6319 3021 AOE 414 | . . . . . . 23 . 26 . . . . . . . . . 31 75 . . . . 15 17 . . . . 86 . . . . 75 66 . Terrain Rammed . | . . . . . . . . . . . . . . . . . . . . . . . . . . . . . . . . . . . . . . Walls Destroyed . | . . . . . . . . . . . . . . . . . . . . . . . . . . . . . . . . . . . . . . Machines Disabled . | . . . . . . . . . . . . . . . . . . . . . . . . . . . . . . . . . . . . . . Actions | -11 -10 -10 -10 -8 -7 -7 -7 -7 -7 -6 -6 -6 -6 -6 -6 -5 -5 -5 -5 -5 -5 -5 -5 -4 -4 -4 -4 -4 -4 -3 -3 -2 -2 -2 -1 -1 -1 --------- Run | Yrd Mat Min Sub Mat Fac Was Fac DSF Gar Fac Ext Cet Arc Hub Gar Fac Was Fac Gar Fac Upp Upp Zhi Pro Fac Was Fac Arm Lab Res Qua Res Tes Sec Acc Com Ac0 Total 49438 | 85 875 953 1632 1516 413 112 30 84 429 4393 786 145 502 984 1574 2678 263 2799 1100 2954 1163 1293 174 1827 7237 113 1907 1692 943 2090 886 791 1300 986 952 1527 250 Wait 14831 | . 32 334 364 416 55 6 . . 19 1755 361 18 348 75 319 657 17 801 241 673 172 342 . 909 3733 1 724 512 380 454 215 310 195 105 183 79 26 Move 30350 | 65 758 573 1191 946 329 96 30 79 343 2306 353 109 113 799 913 1802 232 1779 748 2092 968 919 152 843 3025 111 1124 1047 482 1318 581 400 888 806 718 1213 99 Hop 178 | . 3 11 3 4 3 . . . . 9 2 . 2 5 9 7 . 18 . 32 . 2 . . 36 . 10 1 . 12 . 8 1 . . . . Pick Up 122 | 1 1 3 2 3 2 1 . . 2 11 1 2 . 1 1 8 2 6 1 9 2 . 2 . 7 . . 1 15 11 1 . 1 4 2 15 4 Fast Attach 239 | 10 7 2 8 15 4 . . 1 2 23 . 1 1 . 3 19 . 11 . 5 2 2 6 6 24 . 11 5 2 8 10 . 20 7 3 16 5 Attach 44 | . 1 . . 2 . . . . . 4 . 1 . . . 2 1 2 . 1 1 . 1 . 4 . . 2 3 8 . . 1 4 . 4 2 Detach 28 | . . . . 2 . . . . . 3 . 1 . . . . . 2 . . 1 1 . . 6 . . 2 . 5 . . 1 3 . . 1 Swap 178 | . . 1 2 7 . 1 . . 1 27 2 2 . 2 5 16 2 13 7 17 2 4 . 3 25 1 2 8 . 6 . 1 8 5 . 7 1 Drop 319 | . 6 2 10 18 5 1 . 1 4 35 2 2 . 1 3 23 2 17 1 13 3 2 7 5 26 . 11 2 19 22 8 1 23 8 1 30 5 Fire 1383 | 9 50 26 12 32 . 3 . 3 . 50 46 9 28 49 129 56 7 66 59 61 6 11 . 38 156 . 18 41 32 167 3 . 9 15 29 109 54 Melee 387 | . . . 22 47 7 . . . 45 52 . . . . 1 5 . 4 6 11 1 1 3 1 10 . 4 10 1 16 37 23 64 16 . . . Ram . | . . . . . . . . . . . . . . . . . . . . . . . . . . . . . . . . . . . . . . Kick . | . . . . . . . . . . . . . . . . . . . . . . . . . . . . . . . . . . . . . . Crush . | . . . . . . . . . . . . . . . . . . . . . . . . . . . . . . . . . . . . . . Escape Stasis 250 | . . . . . . . . . . 72 1 . . 18 105 18 . . 18 . . . . . . . . 18 . . . . . . . . . Rewire 29 | . . . 3 15 . . . . . . . . . . 10 . . . . . . . . . . . . 1 . . . . . . . . . Trap 122 | . . 1 . . . . . . . 18 . . . . . 28 . 35 . 1 . . . . 31 . 3 . . 5 . . . . . . . Miscellaneous 978 | . 17 . 15 9 8 4 . . 13 28 18 . 10 34 76 37 . 45 19 39 5 9 3 22 154 . . 42 9 58 31 48 89 13 16 54 53 Route ------- -11/Scrapyard -10/Materials (discovered 5 exits: *Mat x3 / *Min x2) -10/Mines (discovered 3 exits: *Mat x2 / *Sub) -10/Subcaves (discovered 3 exits: *Mat x2 / *Rec) -8/Materials (discovered 3 exits: *Fac x3) -7/Factory (discovered 3 exits: *Fac / Low x2) -7/Waste -7/Factory (discovered 2 exits: *Fac / DSF) -7/DSF -7/Garrison (discovered 3 exits: *Fac x3) -6/Factory (discovered 5 exits: *Fac / Low x2 / *Ext x2) -6/Extension (discovered 2 exits: *Fac / *Cet) -6/Cetus -6/Archives (discovered 3 exits: *Fac / *Hub x2) -6/Hub_04(d) (discovered 5 exits: *Fac x4 / Gar) -6/Garrison (discovered 3 exits: *Fac x3) -5/Factory (discovered 6 exits: *Fac x4 / *Upp / Gar) -5/Waste -5/Factory (discovered 7 exits: Fac x4 / *Upp x2 / Gar) -5/Garrison (discovered 3 exits: *Fac x3) -5/Factory (discovered 6 exits: *Fac x4 / *Upp x2) -5/Upper Caves -5/Upper Caves (discovered 2 exits: *Fac / *Zhi) -5/Zhirov -4/Proximity Caves -4/Factory (discovered 8 exits: *Res x4 / *Upp x2 / Arm / Gar) -4/Waste -4/Factory (discovered 8 exits: *Res x4 / *Upp x2 / *Arm / Gar) -4/Armory (discovered 3 exits: *Res x2 / *Lab) -4/Lab -3/Research (discovered 3 exits: *Res / *Qua x2) -3/Quarantine -2/Research (discovered 5 exits: Acc x3 / *Tes x2) -2/Testing (discovered 2 exits: *Acc / *Sec) -2/Section 7 -1/Access -1/Command (discovered 3 exits: *Sur x2 / *Ac0) -1/Access_0 History --------- Turn | Location | Event 2 | -11/Scrapyard | Upgraded with Propulsion slot (x2) 2 | -11/Scrapyard | Upgraded with Utility slot (x3) 2 | -11/Scrapyard | Upgraded with Weapon slot (x1) 32 | -11/Scrapyard | Identified exit to Materials 32 | -11/Scrapyard | Discovered exit to Materials (range 15) 121 | -11/Scrapyard | Entered Materials 186 | -10/Materials | Identified exit to Mines 186 | -10/Materials | Discovered exit to Mines (range 11) 225 | -10/Materials | Identified exit to Materials 225 | -10/Materials | Discovered exit to Mines (range 14) 305 | -10/Materials | Build established: Hacker-Mutant 579 | -10/Materials | Reached level 2 588 | -10/Materials | Upgraded with Utility slot (x1) 737 | -10/Materials | Entered Mines 749 | -10/Mines | Learned location of 2 exits from Materials 798 | -10/Mines | Learned location of 1 exit from Materials 824 | -10/Mines | Found a hidden stash of uninstalled traps 829 | -10/Mines | Discovered exit to Materials (range 9) 900 | -10/Mines | Reached level 3 922 | -10/Mines | Discovered exit to Materials (range 9) 950 | -10/Mines | Identified exit to Subcaves 950 | -10/Mines | Discovered exit to Subcaves (range 16) 959 | -10/Mines | Upgraded with Weapon slot (x1) 986 | -10/Mines | Met a Derelict shopkeep closing up shop 1278 | -10/Mines | Build established: Hacker-Skirmisher 1350 | -10/Mines | Entered Subcaves 1419 | -10/Subcaves | Identified exit to Recycling 1419 | -10/Subcaves | Discovered exit to Recycling (range 16) 1421 | -10/Subcaves | Identified exit to Materials 1421 | -10/Subcaves | Discovered exit to Materials (range 8) 1583 | -10/Subcaves | Disturbed a concealed Subdweller 1631 | -10/Subcaves | Learned 8 Materials zone layouts 1633 | -10/Subcaves | Discovered exit to Materials (range 12) 1683 | -10/Subcaves | Visited Clippyterm 1684 | -10/Subcaves | Learned location of Extension (-6) 1693 | -10/Subcaves | Ambushed by Subdwellers from Twisted Machinery 1819 | -10/Subcaves | Shifting Twisted Machinery released Mak. Hammer 1842 | -10/Subcaves | Shifting Twisted Machinery released Sub. Laser 1853 | -10/Subcaves | Ambushed by Subdwellers from Twisted Machinery 1876 | -10/Subcaves | Shifting Twisted Machinery released Mak. System Restoration Module 2007 | -10/Subcaves | Build established: Hacker-Mutant 2136 | -10/Subcaves | Visited 4L-MR0's lab 2280 | -10/Subcaves | Entered Materials 2281 | -8/Materials | Identified exit to Factory 2282 | -8/Materials | Reached level 4 2282 | -8/Materials | Reached level 5 2282 | -8/Materials | Reached level 6 2385 | -8/Materials | Reached level 7 2440 | -8/Materials | Upgraded with Utility slot (x1) 2583 | -8/Materials | Found Powered Armor 2903 | -8/Materials | Reached level 8 2952 | -8/Materials | Repaired Shield Generator 3087 | -8/Materials | Build established: Hacker-Ninja 3245 | -8/Materials | Entered Factory 3247 | -7/Factory | Reached level 9 3250 | -7/Factory | Identified exit to Lower Caves 3276 | -7/Factory | Identified exit to Factory 3276 | -7/Factory | Discovered exit to Factory (range 10) 3331 | -7/Factory | Fabricated Imp. Trap Extractor? 3332 | -7/Factory | Upgraded with Utility slot (x1) 3358 | -7/Factory | Fabricated Surge Thruster? 3385 | -7/Factory | Reached level 10 3434 | -7/Factory | Sucked down chute 3434 | -7/Factory | Entered Waste 3441 | -7/Waste | Found Prototype Launcher 3443 | -7/Waste | Identified Mni. Smartbomb Launcher 3452 | -7/Waste | Spotted C-40 Crusher 3452 | -7/Waste | Spotted C-40 Crusher 3462 | -7/Waste | Spotted C-40 Crusher 3462 | -7/Waste | Spotted C-40 Crusher 3465 | -7/Waste | Spotted C-40 Crusher 3466 | -7/Waste | Spotted C-40 Crusher 3477 | -7/Waste | Identified exit to Factory 3477 | -7/Waste | Discovered exit to Factory (range 13) 3482 | -7/Waste | Entered Factory 3491 | -7/Factory | Discovered exit to Factory (range 16) 3491 | -7/Factory | Identified exit to DSF 3491 | -7/Factory | Entered DSF 3493 | -7/DSF | Reached level 11 3513 | -7/DSF | Identified exit to Garrison 3513 | -7/DSF | Discovered exit to Garrison (range 16) 3515 | -7/DSF | Additional patrols routed to DSF 3523 | -7/DSF | Entered Garrison 3529 | -7/Garrison | Installed Relay Interface Framework 3533 | -7/Garrison | Reached level 12 3637 | -7/Garrison | Triggered checkpoint 3661 | -7/Garrison | Garrison Relay disabled 3693 | -7/Garrison | Triggered checkpoint 3733 | -7/Garrison | Triggered checkpoint 3744 | -7/Garrison | Discovered exit to Factory (range 78) 3744 | -7/Garrison | Discovered exit to Factory (range 62) 3744 | -7/Garrison | Discovered exit to Factory (range 24) 3767 | -7/Garrison | Entered Factory 3769 | -6/Factory | Reached level 13 3769 | -6/Factory | Reached level 14 3769 | -6/Factory | Upgraded with Utility slot (x1) 3782 | -6/Factory | Identified exit to Lower Caves 3782 | -6/Factory | Identified exit to Extension 3812 | -6/Factory | Fabricated Transport Network Coupler (x2) 4044 | -6/Factory | Repaired Broken Mni. Smartbomb Launcher 4108 | -6/Factory | Fabricated Adv. Surge Thruster? 4170 | -6/Factory | Identified exit to Factory 4170 | -6/Factory | Discovered exit to Factory (range 11) 4462 | -6/Factory | Repaired Broken Adv. EMP Blaster 4486 | -6/Factory | Reached level 15 4489 | -6/Factory | Upgraded with Power slot (x1) 4637 | -6/Factory | Fabricated Imp. Plasma Cutter (x2) 4643 | -6/Factory | Cargo convoy interrupted 5996 | -6/Factory | Fabricated Imp. Shield Generator (x2) 6012 | -6/Factory | Reached level 16 6012 | -6/Factory | Upgraded with Propulsion slot (x1) 6096 | -6/Factory | Fabricated F-cell Engine (x1) 6139 | -6/Factory | Build established: Hacker-Scout 6242 | -6/Factory | Fabricated Adv. Surge Thruster (x2) 6296 | -6/Factory | Fabricated Adv. Shield Generator (x2) 6333 | -6/Factory | Fabricated Target Analyzer (x2) 6465 | -6/Factory | Entered Extension 6465 | -6/Extension | Accompanied by 1 ally 6467 | -6/Extension | Reached level 17 6470 | -6/Extension | Identified exit to Cetus 6845 | -6/Extension | Crushed by falling debris 6921 | -6/Extension | Rescued A7 7016 | -6/Extension | Discovered exit to Factory (range 10) 7022 | -6/Extension | Entered Cetus 7022 | -6/Cetus | Accompanied by 1 ally (A7) 7025 | -6/Cetus | Spotted Cetus Guard 7025 | -6/Cetus | Spotted Cetus Guard 7026 | -6/Cetus | Spotted Cetus Guard 7026 | -6/Cetus | Spotted Cetus Guard 7027 | -6/Cetus | Acquired a Cetus Manufacturing Module code from A7 7029 | -6/Cetus | Destroyed Cetus Guard 7038 | -6/Cetus | Allies destroyed Cetus Guard 7047 | -6/Cetus | Destroyed Cetus Guard 7049 | -6/Cetus | Allies destroyed Cetus Guard 7068 | -6/Cetus | Started Cetus Manufacturing Module 7078 | -6/Cetus | Escorted A7 to Cetus Mainframe 7078 | -6/Cetus | Reached level 18 7080 | -6/Cetus | Upgraded with Utility slot (x1) 7081 | -6/Cetus | Identified exit to Archives 7081 | -6/Cetus | Discovered exit to Archives (range 16) 7093 | -6/Cetus | Manufactured an Enhanced Grunt 7093 | -6/Cetus | Entered Archives 7093 | -6/Archives | Accompanied by 1 ally (A7) 7098 | -6/Archives | Received a hacking code to weaken MAIN.C 7167 | -6/Archives | Identified exit to Hub_04(d) 7167 | -6/Archives | Discovered exit to Hub_04(d) (range 17) 7217 | -6/Archives | Discovered exit to Factory (range 17) 7277 | -6/Archives | Discovered exit to Hub_04(d) (range 18) 7570 | -6/Archives | Entered Hub_04(d) 7583 | -6/Hub_04(d) | Spotted B-75 Beast 7615 | -6/Hub_04(d) | Destroyed B-75 Beast 7707 | -6/Hub_04(d) | Identified exit to Garrison 7794 | -6/Hub_04(d) | Network Hub disabled 7822 | -6/Hub_04(d) | Network Hub disabled 7856 | -6/Hub_04(d) | Spotted Lightning 7893 | -6/Hub_04(d) | Spotted Lightning 7893 | -6/Hub_04(d) | Spotted Lightning 7893 | -6/Hub_04(d) | Spotted Lightning 7898 | -6/Hub_04(d) | Network Hub disabled 7908 | -6/Hub_04(d) | Network Hub disabled 7923 | -6/Hub_04(d) | Reached level 19 7926 | -6/Hub_04(d) | Spotted Lightning 7926 | -6/Hub_04(d) | Spotted Lightning 7926 | -6/Hub_04(d) | Spotted Lightning 7946 | -6/Hub_04(d) | Garrison activated, responded to threat 7960 | -6/Hub_04(d) | Core integrity fell below 50% 7973 | -6/Hub_04(d) | Entered Garrison 7983 | -6/Garrison | Garrison Relay disabled 8022 | -6/Garrison | Garrison Relay disabled 8025 | -6/Garrison | Garrison Relay disabled 8059 | -6/Garrison | Garrison Relay disabled 8155 | -6/Garrison | Triggered checkpoint 8155 | -6/Garrison | Spotted B-75 Beast 8186 | -6/Garrison | Destroyed B-75 Beast 8193 | -6/Garrison | Discovered exit to Factory (range 9) 8197 | -6/Garrison | Build established: Wizard-Scout 8366 | -6/Garrison | Expanded RIF knowledge: Watcher Feeds 8380 | -6/Garrison | Garrison Relay disabled 8409 | -6/Garrison | Triggered checkpoint 8589 | -6/Garrison | Phase Generator disabled 8615 | -6/Garrison | Garrison Relay disabled 8632 | -6/Garrison | Discovered exit to Factory (range 12) 8681 | -6/Garrison | Spotted B-90 Cyclops 8693 | -6/Garrison | Destroyed B-90 Cyclops 8763 | -6/Garrison | Rewired B-86 Titan 8797 | -6/Garrison | Triggered checkpoint 8805 | -6/Garrison | Reached level 20 8807 | -6/Garrison | Garrison Relay disabled 8818 | -6/Garrison | Spotted B-75 Beast 8836 | -6/Garrison | Assimilated Beast 5a with formatsys_high 8844 | -6/Garrison | Discovered exit to Factory (range 11) 8923 | -6/Garrison | Triggered checkpoint 9046 | -6/Garrison | Entered Factory 9046 | -5/Factory | Accompanied by 3 allies 9046 | -5/Factory | Upgraded with Utility slot (x1) 9086 | -5/Factory | Reached level 21 9087 | -5/Factory | Identified exit to Upper Caves 9087 | -5/Factory | Discovered exit to Upper Caves (range 23) 9136 | -5/Factory | Identified exit to Factory 9149 | -5/Factory | Fabricated Adv. Powered Armor (x1) 9260 | -5/Factory | Fabricated Adv. Powered Armor (x1) 9424 | -5/Factory | Build established: Wizard-Ninja 9470 | -5/Factory | Fabricated Adv. Datajack (x1) 9600 | -5/Factory | Fabricated Transport Network Coupler (x2) 9751 | -5/Factory | Identified exit to Garrison 10173 | -5/Factory | Cargo convoy interrupted 10296 | -5/Factory | Fabricated Adv. System Restoration Module (x2) 10425 | -5/Factory | Reached level 22 10425 | -5/Factory | Upgraded with Propulsion slot (x1) 10481 | -5/Factory | Fabricated Adv. Surge Thruster (x2) 10493 | -5/Factory | Sucked down chute 10493 | -5/Factory | Entered Waste 10493 | -5/Waste | Met up with 5 allies sucked down the chute earlier 10494 | -5/Waste | Spotted C-40 Crusher 10495 | -5/Waste | Spotted C-40 Crusher 10497 | -5/Waste | Warlord forces began an assault 10498 | -5/Waste | Spotted C-40 Crusher 10502 | -5/Waste | Spotted C-40 Crusher 10505 | -5/Waste | Spotted C-40 Crusher 10519 | -5/Waste | Spotted C-40 Crusher 10524 | -5/Waste | Destroyed C-40 Crusher 10538 | -5/Waste | Destroyed C-40 Crusher 10545 | -5/Waste | Identified exit to Factory 10545 | -5/Waste | Discovered exit to Factory (range 12) 10556 | -5/Waste | Lost 6 allies 10569 | -5/Waste | Entered Factory 10631 | -5/Factory | Identified exit to DSF 10833 | -5/Factory | Fabricated Imp. Quantum Reactor (x1) 10949 | -5/Factory | Repaired Broken Adv. Trap Extractor 11086 | -5/Factory | Identified exit to Garrison 11089 | -5/Factory | Identified exit to DSF 11362 | -5/Factory | Cargo convoy interrupted 11429 | -5/Factory | Core integrity fell below 50% 11467 | -5/Factory | Destroyed 10 combat bots 11668 | -5/Factory | Fabricated Adv. System Restoration Module (x2) 11725 | -5/Factory | Fabricated Cld. Q-thruster (x1) 11783 | -5/Factory | Fabricated Cld. Q-thruster (x1) 11867 | -5/Factory | Fabricated Cld. Q-thruster (x1) 11930 | -5/Factory | Fabricated Cld. Q-thruster (x1) 11964 | -5/Factory | Entered Garrison 11970 | -5/Garrison | Triggered checkpoint 11996 | -5/Garrison | Garrison Relay disabled 12047 | -5/Garrison | Expanded RIF knowledge: Command Fork 12053 | -5/Garrison | Identified exit to Factory 12053 | -5/Garrison | Discovered exit to Factory (range 11) 12060 | -5/Garrison | Triggered checkpoint 12110 | -5/Garrison | Triggered checkpoint 12131 | -5/Garrison | Garrison Relay disabled 12145 | -5/Garrison | Reached level 23 12172 | -5/Garrison | Garrison Relay disabled 12264 | -5/Garrison | Triggered checkpoint 12472 | -5/Garrison | Phase Generator disabled 12474 | -5/Garrison | Discovered exit to Factory (range 12) 12476 | -5/Garrison | Discovered exit to Factory (range 51) 12476 | -5/Garrison | Discovered exit to Factory (range 7) 12476 | -5/Garrison | Discovered exit to Factory (range 69) 12476 | -5/Garrison | Learned Factory security intel 12511 | -5/Garrison | Rewired Striker 12512 | -5/Garrison | Rewired Striker 12521 | -5/Garrison | Entered Factory 12521 | -5/Factory | Accompanied by 2 allies 12717 | -5/Factory | Repaired Broken Adv. Cloaking Device? 12894 | -5/Factory | Fabricated Imp. Quantum Reactor (x1) 12955 | -5/Factory | Fabricated Lrn. Terrain Scanner? 13044 | -5/Factory | Fabricated Adv. Transmission Jammer (x1) 13066 | -5/Factory | Build established: Wizard-Scout 13306 | -5/Factory | Cargo convoy interrupted 13376 | -5/Factory | Found Point Singularity Launcher 13480 | -5/Factory | Fabricated Adv. System Restoration Module? 13507 | -5/Factory | Fabricated Adv. Signal Interpreter (x2) 13598 | -5/Factory | Build established: Wizard-Ninja 13854 | -5/Factory | Entered Upper Caves 13964 | -5/Upper Caves | Learned Factory stockpile data 13998 | -5/Upper Caves | Learned Factory stockpile data 14006 | -5/Upper Caves | Attracted the attention of an 0b10 checkpoint 14078 | -5/Upper Caves | Identified exit to Upper Caves 14078 | -5/Upper Caves | Discovered exit to Upper Caves (range 16) 14234 | -5/Upper Caves | Entered another Upper Caves area 14236 | -5/Upper Caves | Reached level 24 14262 | -5/Upper Caves | Discovered exit to Factory (range 6) 14273 | -5/Upper Caves | Spotted B-75 Beast 14274 | -5/Upper Caves | Destroyed B-75 Beast 14289 | -5/Upper Caves | Ambushed by research squad 14533 | -5/Upper Caves | Learned 4 Factory zone layouts 14554 | -5/Upper Caves | Identified exit to Zhirov 14554 | -5/Upper Caves | Discovered exit to Zhirov (range 8) 14777 | -5/Upper Caves | Attracted the attention of an 0b10 checkpoint 14779 | -5/Upper Caves | Learned Factory stockpile data 14795 | -5/Upper Caves | Entered Zhirov 14795 | -5/Zhirov | Identified exit to Proximity Caves 14795 | -5/Zhirov | Discovered exit to Proximity Caves (range 4) 14799 | -5/Zhirov | Met Zhirov 14805 | -5/Zhirov | Learned location of Quarantine (-3) 14805 | -5/Zhirov | Learned location of Testing (-2) 14807 | -5/Zhirov | Zhirov requested help retrieving the SGEMP Prototype 14811 | -5/Zhirov | Found Alien Artifact 14811 | -5/Zhirov | Identified Integrated Dissipator 14811 | -5/Zhirov | Installed Integrated Dissipator, increased core heat dissipation (+20) 14835 | -5/Zhirov | Found Alien Artifact 14843 | -5/Zhirov | Entered Proximity Caves 15319 | -4/Proximity Caves | Received a Behemoth hack from an annoying Tinkerer 15595 | -4/Proximity Caves | Spotted B-86 Titan 15619 | -4/Proximity Caves | Destroyed B-86 Titan 15624 | -4/Proximity Caves | Discovered exit to Factory (range 22) 16051 | -4/Proximity Caves | Entered Factory 16053 | -4/Factory | Reached level 25 16150 | -4/Factory | Fabricated Adv. Signal Interpreter (x2) 16253 | -4/Factory | Repaired Adv. System Restoration Module 16260 | -4/Factory | Spotted B-86 Titan 16367 | -4/Factory | Destroyed B-86 Titan 16381 | -4/Factory | Core integrity fell below 50% 16405 | -4/Factory | Destroyed 7 combat bots 16610 | -4/Factory | Identified Transdimensional Reconstructor 16802 | -4/Factory | Identified exit to Research 16802 | -4/Factory | Discovered exit to Research (range 37) 16802 | -4/Factory | Identified exit to Upper Caves 16802 | -4/Factory | Identified exit to Armory 17188 | -4/Factory | Build established: Wizard-Scout 17484 | -4/Factory | Fabricated Exp. Signal Interpreter (x1) 17499 | -4/Factory | Fabricated Transport Network Coupler (x2) 17544 | -4/Factory | Identified exit to Garrison 17592 | -4/Factory | Reached level 26 17727 | -4/Factory | Upgraded with Utility slot (x1) 18407 | -4/Factory | Build established: Wizard-Ninja 18564 | -4/Factory | Fabricated Exp. Shield Generator (x1) 18617 | -4/Factory | Fabricated Exp. EM Disruption Field (x1) 18707 | -4/Factory | Identified exit to Garrison 18906 | -4/Factory | Build established: Machinist-Ninja 20802 | -4/Factory | Cargo convoy interrupted 20805 | -4/Factory | Build established: Wizard-Scout 20823 | -4/Factory | Found Prototype Device 20823 | -4/Factory | Identified Exp. Cloaking Device 20828 | -4/Factory | Found Prototype Slashing Weapon 20828 | -4/Factory | Identified Nanosword 21027 | -4/Factory | Fabricated Adv. System Restoration Module (x2) 21156 | -4/Factory | Sucked down chute 21156 | -4/Factory | Entered Waste 21157 | -4/Waste | Met a frightened Derelict 21169 | -4/Waste | Spotted C-40 Crusher 21169 | -4/Waste | Spotted C-40 Crusher 21169 | -4/Waste | Spotted C-40 Crusher 21171 | -4/Waste | EMP discharged 21173 | -4/Waste | Spotted C-40 Crusher 21176 | -4/Waste | Spotted C-40 Crusher 21178 | -4/Waste | Identified exit to Factory 21178 | -4/Waste | Discovered exit to Factory (range 13) 21180 | -4/Waste | Entered Factory 21289 | -4/Factory | Discovered exit to Upper Caves (range 36) 21451 | -4/Factory | Identified exit to Garrison 21467 | -4/Factory | Build established: Machinist-Ninja 22080 | -4/Factory | Cargo convoy interrupted 22120 | -4/Factory | Build established: Wizard-Ninja 22133 | -4/Factory | Found Prototype Processor 22133 | -4/Factory | Identified Exp. Target Analyzer 22135 | -4/Factory | Found Prototype Launcher 22135 | -4/Factory | Identified Enh. Gamma Bomb Array 22141 | -4/Factory | Found Exp. Target Analyzer 22193 | -4/Factory | Entered Armory 22234 | -4/Armory | Repaired Adv. System Restoration Module 22284 | -4/Armory | Repaired Adv. Variable Charge Gun 22502 | -4/Armory | Reached level 27 22584 | -4/Armory | Spotted B-86 Titan 22595 | -4/Armory | Destroyed B-86 Titan 22697 | -4/Armory | Fabricated Exp. Targeting Computer (x1) 22726 | -4/Armory | Identified exit to Lab 22726 | -4/Armory | Discovered exit to Lab (range 9) 22844 | -4/Armory | Fabricated A-15 Conveyor (x1) 22845 | -4/Armory | P-70 Sage assimilated allied Conveyor 7a 22849 | -4/Armory | Fabricated A-15 Conveyor? 22938 | -4/Armory | Fabricated A-15 Conveyor (x1) 23001 | -4/Armory | Build established: Machinist-Ninja 23054 | -4/Armory | Fabricated C-55 Analyst (x1) 23094 | -4/Armory | Entered Lab 23094 | -4/Lab | Accompanied by 9 allies 23094 | -4/Lab | Discovered exit to Research (range 9) 23097 | -4/Lab | Unable to decrypt terminal 23097 | -4/Lab | Opened the door to a hidden lab 23097 | -4/Lab | Detected by scanners 23098 | -4/Lab | Gained access to the hidden lab's interior 23103 | -4/Lab | Confronted by A5 23165 | -4/Lab | Destroyed A5 23203 | -4/Lab | Found Integrated Dissipator 23203 | -4/Lab | Installed Integrated Dissipator, increased core heat dissipation (+20) 23208 | -4/Lab | Found Core Expander 23213 | -4/Lab | Installed Core Expander, added new Weapon slot 23232 | -4/Lab | Found Hvy. Regenerative Plating 23239 | -4/Lab | Found Potential Cannon 23242 | -4/Lab | Found Warp Cannon 23259 | -4/Lab | Found Gui. Remote Datajack 23331 | -4/Lab | Unable to decrypt terminal 23348 | -4/Lab | Found Core Reset Matrix 23403 | -4/Lab | Found Deep Network Scanner 23734 | -4/Lab | Unable to decrypt terminal 23736 | -4/Lab | Unable to decrypt terminal 23736 | -4/Lab | Found Alien Artifact 23736 | -4/Lab | Identified LC Capacitor 23822 | -4/Lab | Entered Research 23822 | -3/Research | Accompanied by 8 allies 23824 | -3/Research | Reached level 28 23824 | -3/Research | Upgraded with Utility slot (x1) 23850 | -3/Research | Identified exit to Quarantine 23941 | -3/Research | Lost 3 allies 24011 | -3/Research | Identified exit to Research 24011 | -3/Research | Discovered exit to Research (range 26) 24047 | -3/Research | Destroyed 7 combat bots 24131 | -3/Research | Intercept squad dispatched 24154 | -3/Research | Spotted Tracker 24165 | -3/Research | Reached level 29 24165 | -3/Research | Destroyed Tracker 24193 | -3/Research | Spotted Combat Programmer 24194 | -3/Research | Combat Programmer assimilated allied Conveyor 7b 24204 | -3/Research | Destroyed Combat Programmer 24564 | -3/Research | Cargo convoy interrupted 24719 | -3/Research | Intercept squad dispatched 24752 | -3/Research | Spotted Tracker 24755 | -3/Research | Spotted Tracker 24763 | -3/Research | Fabricated Quantum Shading Machine? 24765 | -3/Research | Core integrity fell below 50% 24768 | -3/Research | Destroyed Tracker 24788 | -3/Research | Spotted Combat Programmer 24791 | -3/Research | Spotted Combat Programmer 24799 | -3/Research | Core integrity fell below 20% 24833 | -3/Research | Destroyed Combat Programmer 24843 | -3/Research | Destroyed Combat Programmer 24864 | -3/Research | Found Exp. Shield Generator 24920 | -3/Research | Fabricated Adv. System Restoration Module (x2) 25003 | -3/Research | Fabricated Nanosword (x1) 25107 | -3/Research | Entered Quarantine 25114 | -3/Quarantine | Cryocooling Duct disabled 25129 | -3/Quarantine | Ambient heat levels rising (+20) 25129 | -3/Quarantine | Non-combat units ordered to evacuate 25132 | -3/Quarantine | Found Alien Reactor 25132 | -3/Quarantine | Identified Matter Drive 25149 | -3/Quarantine | Found Alien Impact Weapon 25149 | -3/Quarantine | Identified Core Stripper 25294 | -3/Quarantine | Found Alien Slashing Weapon 25294 | -3/Quarantine | Identified Sigix Broadsword 25507 | -3/Quarantine | Build established: Wizard-Gladiator 25681 | -3/Quarantine | Repaired Exp. EM Disruption Field 25757 | -3/Quarantine | Found Alien Artifact 25786 | -3/Quarantine | Entered Research 25787 | -2/Research | Core integrity fell below 50% 25788 | -2/Research | Reached level 30 25913 | -2/Research | Identified exit to Testing 25913 | -2/Research | Identified exit to Access 25965 | -2/Research | Fabricated Exp. Terrain Scanner? 26055 | -2/Research | Identified Subatomic Replicator 26144 | -2/Research | Reached level 31 26322 | -2/Research | Entered Testing 26335 | -2/Testing | Spotted PD-PH4XG4QCT6 26443 | -2/Testing | Spotted Striker 26444 | -2/Testing | Destroyed Striker 26446 | -2/Testing | Spotted Striker 26449 | -2/Testing | Spotted Alpha 7 26463 | -2/Testing | Destroyed Striker 26546 | -2/Testing | Found Prototype Ballistic Gun 26546 | -2/Testing | Identified Multirail 26577 | -2/Testing | Found Prototype Energy Cannon 26577 | -2/Testing | Identified Null Cannon 26783 | -2/Testing | Found Prototype Energy Gun 26783 | -2/Testing | Identified Hyp. EM Gauss Rifle 26791 | -2/Testing | Intercept squad dispatched 26796 | -2/Testing | Spotted Tracker 26797 | -2/Testing | Spotted Tracker 26809 | -2/Testing | Spotted Combat Programmer 26809 | -2/Testing | Spotted Combat Programmer 26810 | -2/Testing | Destroyed Tracker 26816 | -2/Testing | Destroyed Tracker 26833 | -2/Testing | Destroyed Combat Programmer 26873 | -2/Testing | Destroyed Combat Programmer 26926 | -2/Testing | Spotted Fortress 26954 | -2/Testing | Destroyed Fortress 26970 | -2/Testing | Found Prototype Device 26970 | -2/Testing | Identified Thermal Barrier 26974 | -2/Testing | Found Prototype Device 26974 | -2/Testing | Identified Exp. Force Field 27001 | -2/Testing | Reached level 32 27008 | -2/Testing | Upgraded with Weapon slot (x1) 27072 | -2/Testing | Found Prototype Reactor 27072 | -2/Testing | Identified Vortex Chain Reactor 27098 | -2/Testing | Identified exit to Section 7 27098 | -2/Testing | Discovered exit to Section 7 (range 6) 27098 | -2/Testing | Entered Section 7 27199 | -2/Section 7 | Spotted S7 Guard 27232 | -2/Section 7 | Destroyed S7 Guard 27239 | -2/Section 7 | Found Alien Artifact 27243 | -2/Section 7 | Identified Core Regenerator 27261 | -2/Section 7 | Used Core Regenerator, restored core integrity (+315) 27264 | -2/Section 7 | Found Alien Artifact 27293 | -2/Section 7 | Spotted Executioner 27293 | -2/Section 7 | Spotted Executioner 27305 | -2/Section 7 | Found Alien Energy Cannon 27305 | -2/Section 7 | Identified Drained L-Cannon 27306 | -2/Section 7 | Installed L-Cannon capacitor 27307 | -2/Section 7 | Used Subatomic Replicator to replicate L-Cannon 27379 | -2/Section 7 | Spotted B-99 Colossus 27426 | -2/Section 7 | Found Alien Artifact 27426 | -2/Section 7 | Identified LRC Inertial Stabilizer 27426 | -2/Section 7 | Installed LRC Inertial Stabilizer, increased mass support (+10) 27450 | -2/Section 7 | Identified Integrated Mediator 27450 | -2/Section 7 | Installed Integrated Mediator, increased core attachment efficiency 27524 | -2/Section 7 | Intercept squad dispatched 27540 | -2/Section 7 | Spotted Tracker 27541 | -2/Section 7 | Fired L-Cannon 27574 | -2/Section 7 | Spotted Combat Programmer 27583 | -2/Section 7 | Destroyed Combat Programmer 27604 | -2/Section 7 | Build established: Wizard-Skirmisher 27691 | -2/Section 7 | Spotted S7 Guard 27712 | -2/Section 7 | Found Alien Artifact 27712 | -2/Section 7 | Identified Integrated Thermoelectric Network 27712 | -2/Section 7 | Installed Integrated Thermoelectric Network, gained heat-energy exchange potential 27731 | -2/Section 7 | Found Alien Artifact 27731 | -2/Section 7 | Identified Integrity Redistributor 27731 | -2/Section 7 | Used Integrity Redistributor, redistributed integrity from core (-23) 27737 | -2/Section 7 | Entered Access 27739 | -1/Access | Reached level 33 27785 | -1/Access | Fabricated Beam Splitter (x1) 28078 | -1/Access | Spotted B-99 Colossus 28089 | -1/Access | Build established: Wizard-Tank 28330 | -1/Access | Identified exit to Command 28402 | -1/Access | Intercept squad dispatched 28407 | -1/Access | Fired L-Cannon 28424 | -1/Access | Fabricated Cld. Linear Gravjet? 28426 | -1/Access | Spotted Tracker 28427 | -1/Access | Spotted Tracker 28427 | -1/Access | Fired L-Cannon 28427 | -1/Access | Reached level 34 28431 | -1/Access | Spotted Combat Programmer 28437 | -1/Access | Fired L-Cannon 28486 | -1/Access | Spotted Combat Programmer 28487 | -1/Access | First assault squad dispatched 28500 | -1/Access | Destroyed Combat Programmer 28560 | -1/Access | Fired L-Cannon 28560 | -1/Access | Energy Cycler disabled 28570 | -1/Access | Spotted B-99 Colossus 28570 | -1/Access | Spotted B-99 Colossus 28576 | -1/Access | Entered Command 28612 | -1/Command | Reached level 35 28612 | -1/Command | Identified exit to Surface 28746 | -1/Command | Phase Generator disabled 28774 | -1/Command | Upgraded with Utility slot (x1) 28856 | -1/Command | First assault squad dispatched 28861 | -1/Command | Fired L-Cannon 28874 | -1/Command | Fired L-Cannon 28874 | -1/Command | High security lockdown imminent 28887 | -1/Command | Fired L-Cannon 28917 | -1/Command | Fired L-Cannon 28929 | -1/Command | Fired L-Cannon 28954 | -1/Command | High security lockdown engaged 29050 | -1/Command | Fired L-Cannon 29050 | -1/Command | Reached level 36 29062 | -1/Command | Fired L-Cannon 29064 | -1/Command | Build established: Wizard-Skirmisher 29073 | -1/Command | Fired L-Cannon 29073 | -1/Command | 0b10 Conduit disabled 29083 | -1/Command | Fired L-Cannon 29093 | -1/Command | Fired L-Cannon 29103 | -1/Command | Fired L-Cannon 29113 | -1/Command | Fired L-Cannon 29177 | -1/Command | Fired L-Cannon 29187 | -1/Command | Fired L-Cannon 29199 | -1/Command | Fired L-Cannon 29256 | -1/Command | Fired L-Cannon 29266 | -1/Command | Fired L-Cannon 29279 | -1/Command | Fired L-Cannon 29294 | -1/Command | Fired L-Cannon 29304 | -1/Command | Fired L-Cannon 29305 | -1/Command | L-Cannon capacitor drained 29330 | -1/Command | Fired L-Cannon 29342 | -1/Command | Fired L-Cannon 29355 | -1/Command | Fired L-Cannon 29355 | -1/Command | All MAIN.C guards destroyed 29367 | -1/Command | Fired L-Cannon 29377 | -1/Command | Fired L-Cannon 29388 | -1/Command | Upgraded with Power slot (x1) 29461 | -1/Command | Found Zero-point Reactor 29480 | -1/Command | Found Prototype Device 29480 | -1/Command | Identified AEGIS Remote Shield 29600 | -1/Command | Build established: Wizard-Tank 29896 | -1/Command | Met MAIN.C 29898 | -1/Command | Hacked MAIN.C using A7's code 29922 | -1/Command | Fired L-Cannon 29922 | -1/Command | Reached level 37 29925 | -1/Command | MAIN.C activated Command garrisons 29932 | -1/Command | Fired L-Cannon 29959 | -1/Command | Discovered exit to Surface (range 39) 29959 | -1/Command | Discovered exit to Surface (range 81) 29959 | -1/Command | Extracted map data and part IDs from MAIN.C's data core 29990 | -1/Command | Spotted B-99 Colossus 30009 | -1/Command | Fired L-Cannon 30057 | -1/Command | Found Exp. Powered Armor 30169 | -1/Command | Fired L-Cannon 30194 | -1/Command | Found Exp. Focal Shield 30199 | -1/Command | Found Exp. System Purifier 30207 | -1/Command | Found Exp. Core Analyzer 30695 | -1/Command | Warped through subspace to slip node 30695 | -1/Command | Identified exit to Access_0 30695 | -1/Command | Discovered exit to Access_0 (range 5) 30702 | -1/Command | Entered Access_0 30702 | -1/Access_0 | Fired L-Cannon 30704 | -1/Access_0 | Reached level 38 30712 | -1/Access_0 | Met Architect 30714 | -1/Access_0 | Fired L-Cannon 30714 | -1/Access_0 | Architect warped through subspace 30749 | -1/Access_0 | Fired L-Cannon 30749 | -1/Access_0 | Destroyed A8 30763 | -1/Access_0 | Fired L-Cannon 30773 | -1/Access_0 | Fired L-Cannon 30773 | -1/Access_0 | Architect warped through subspace 30814 | -1/Access_0 | Fired L-Cannon 30814 | -1/Access_0 | Architect warped through subspace 30845 | -1/Access_0 | Fired L-Cannon 30845 | -1/Access_0 | Architect warped through subspace 30873 | -1/Access_0 | Fired L-Cannon 30884 | -1/Access_0 | Fired L-Cannon 30894 | -1/Access_0 | Fired L-Cannon 30910 | -1/Access_0 | Fired L-Cannon 30910 | -1/Access_0 | Architect warped through subspace 30961 | -1/Access_0 | Fired L-Cannon 30961 | -1/Access_0 | Subspace Access Node disabled 30972 | -1/Access_0 | Core integrity fell below 50% 30990 | -1/Access_0 | Fired L-Cannon 30990 | -1/Access_0 | Architect warped through subspace 31047 | -1/Access_0 | Core integrity fell below 20% 31058 | -1/Access_0 | Fired L-Cannon 31096 | -1/Access_0 | Fired L-Cannon 31096 | -1/Access_0 | Architect warped through subspace 31121 | -1/Access_0 | Fired L-Cannon 31121 | -1/Access_0 | Subspace Access Node disabled 31122 | -1/Access_0 | L-Cannon capacitor drained 31173 | -1/Access_0 | Destroyed by Architect with Modified Sigix Sheargun Last Messages --------------- 31162_ HV Slug penetrates Architect. 31162_ Penetrated by HV Slug. 31163_ Penetrated by Quantum Shear. 31164_ Penetrated by HV Slug. 31164_ Critical hit (Destroy). 31164_ Penetrated by HV Slug. 31164_ Critical hit (Destroy). 31164_ Adv. Phase Shifter destroyed. 31165_ Penetrated by HV Slug. 31166_ Advanced Drone retrieved by Adv. Drone Bay. 31167_ Penetrated by HV Slug. 31170_ HV Slug penetrates Wall. 31170_ Penetrated by Quantum Shear. 31172_ Penetrated by HV Slug. 31172_ HV Slug penetrates Earth. 31172_ Penetrated by HV Slug. 31172_ HV Slug penetrates Wall. 31172_ Penetrated by HV Slug. 31173_ Penetrated by Quantum Shear. Map ----- +----------------------------------------------------+ | #?????????#?###?#?#??###### ############### | | ????????##?################ ############?## | | ??????#?#?################" ############### | | #?????????##########?###### "############# | | #??????#??############?## ########### | | "" " #??#?################## Y ## ########### | | ?? " #####?#######?####### "## #######?### | | ???? ####?################ ### ########### | | ????? ####?############### ## ########### | | ?????#? ################## "# ## ########### | | ?????#?# ################### ## ########### | | ?????##??# ";# ############## ## ########### | | ??? #?### ;;; ############## #### #### | | ##"#"""""#####;;; ############# ### ##### | | "" ################ ## ###### | | "" ; ############## # ####### | | ########""";;;#;;" ;;; ### ## "######## | | ######### ;;% ;#; # # "######## | | ### ;;;= ;;; ;;;; ## ######## | | %!!!; ;; ;;;;;;#; ######## | | ]*%!; ; ;;; "# # ### | | =%=; ; ;; ;; ;" | | ###### ;] ;;;; ;;; ;; | | ############### ; ;; ;;;;;;;""""""" | | " """"""""### % ;; | | """ " @ %% *!! | | "" " %;; %% %%=! | | " " ;;;;;;;; % ! | | """"" ;; ;;; ; ;; %;; ;;; """""""" | | # ## ### #;;; ;;; ;%;% ; ; "" | | ### ##### ## ; ;; ;;; ;;;%% ; " | | #### #""" ";;;; ;;; ; ;; % ;; ;" " | | """"" ;; ;;h ; ; ; ;;;"""" | | "" ;;;";;;; h ; ;;%;;;;; ### | | ;" ;;; ;;; ########### | | "" !*! ##;; % ######### | | """" != !] ;;;### "########## | | " "" ""= #######?# ## #;; gg # ######### | | "# ### ################ ;;; g ## ######## | | ########## ######## ;; """### ####### | | #??#??#### ####### ######## ;; 0 #" #### ###### | | ########## ####### ########"; ## ##### ##### | | #### ### ##" % ## ##### #### | | ## # "# ### ## %### ########## | | # ##### ## ### %"#### ########## | | ####### ### #### "#####""" ######### | | ###" "### ### ##### "###### ""######### | | ####" "## ### #####" ##### ######### | | ##"" ## ### #####" ### | | # " "# #" ## ## ##?##" ## | +----------------------------------------------------+ Best States ------------- Heat Dissipation 119 Energy Generation 93 Energy Capacity 840 Matter Stores 300 Matter Capacity 300 Sight Range 18 Robot Scan Range 22 Terrain Scan Range 30 Terrain Scan Density 210 ECM Strength 1 Jamming Range 16 Cloak Strength 4 Additional Mass Support 25 Corruption Containment 8 Armor Coverage 800 Resistance: KI 65 Resistance: TH 100 Resistance: EX 35 Resistance: EM 100 Resistance: I 35 Resistance: S 35 Resistance: P 35 Power Shielding 66 Propulsion Shielding 66 Utility Shielding 66 Weapon Shielding 90 Phase Shifting 15 Evasion (%) 80 Targeting Accuracy 12 Target Analysis 15 Core Analysis 8 Armor Integrity Analysis 40 Recoil Reduction 5 Salvage Targeting 3 Offensive Hacking 75 Defensive Hacking 20 Relay Coupler Types 2 Relay Coupler Value 116 Authchip Count 1 Trap Extractor Capacity 8 Item Schematics ----------------- Multitool | -8/Materials | Scanalyzed Enh. Flamer | -8/Materials | Scanalyzed Powered Armor | -8/Materials | Scanalyzed Imp. VTOL Module | -8/Materials | Scanalyzed Trap Extractor | -8/Materials | Hacked Transport Network Coupler | -8/Materials | Hacked Surge Thruster | -8/Materials | Hacked Target Analyzer | -8/Materials | Hacked Adv. Weight Redist. System | -8/Materials | Hacked Hacking Suite | -8/Materials | Hacked Imp. Trap Extractor | -7/Factory | Hacked Imp. Trap Scanner | -7/Factory | Hacked Hyp. Gauss Rifle | -7/Factory | Hacked Imp. KE Penetrator | -7/Factory | Hacked Gyrokinetic Inverter | -7/Factory | Hacked Imp. Shield Generator | -7/Factory | Hacked Adv. Surge Thruster | -6/Factory | Scanalyzed Mni. Smartbomb Launcher | -6/Factory | Scanalyzed Gravity Neutralizer | -6/Factory | Scanalyzed Mak. Hammer | -6/Factory | Scanalyzed Adv. EMP Blaster | -6/Factory | Scanalyzed Imp. Plasma Cutter | -6/Factory | Hacked F-cell Engine | -6/Factory | Hacked Mic. Fission Core | -6/Factory | Hacked Adv. Shield Generator | -6/Factory | Hacked Imp. Powered Armor | -6/Extension | Hacked Imp. Target Analyzer | -6/Extension | Hacked Graphene Brace | -6/Hub_04(d) | Hacked Adv. Powered Armor | -5/Factory | Hacked Exp. Targeting Computer | -5/Factory | Hacked Adv. System Shield | -5/Factory | Hacked Centrium Medium Armor Plating | -5/Factory | Scanalyzed Adv. Variable Charge Gun | -5/Factory | Scanalyzed Hvy. Shock Bomb Launcher | -5/Factory | Scanalyzed Quantum Rifle | -5/Factory | Hacked Imp. Heavy Siege Treads | -5/Factory | Hacked Biometal Medium Treads | -5/Factory | Hacked Particle Reactor | -5/Factory | Hacked Mic. Antimatter Reactor | -5/Factory | Hacked Adv. Cryofiber Web | -5/Factory | Hacked Exp. Cooling System | -5/Factory | Hacked Hyp. Railgun | -5/Factory | Hacked Phase Gun | -5/Factory | Hacked Adv. System Restoration Module | -5/Factory | Hacked Prc. Matter Filter | -5/Factory | Hacked Imp. Quantum Reactor | -5/Factory | Scanalyzed Adv. Trap Extractor | -5/Factory | Scanalyzed Thermic Laser | -5/Factory | Scanalyzed Centrium Wheel | -5/Factory | Hacked Adv. Target Analyzer | -5/Factory | Hacked Imp. Recalibrator | -5/Factory | Hacked Cld. Q-thruster | -5/Factory | Scanalyzed Exp. Utility Shielding | -5/Garrison | Hacked Adv. Transmission Jammer | -5/Garrison | Hacked Adv. Thermal Generator | -5/Garrison | Hacked Adv. Force Field | -5/Factory | Hacked Adv. Gravity Neutralizer | -5/Factory | Scanalyzed Adv. Cloaking Device | -5/Factory | Scanalyzed Adv. Coolant Injector | -5/Factory | Hacked Lrn. Terrain Scanner | -5/Factory | Hacked Adv. Recalibrator | -5/Factory | Hacked Adv. Signal Interpreter | -5/Factory | Hacked Q-thruster | -5/Factory | Hacked Hdn. Centrium Wheel | -5/Factory | Scanalyzed Point Singularity Launcher | -5/Factory | Scanalyzed Assault Drone Bay | -5/Zhirov | Free Exp. Heat Sink | -5/Zhirov | Free Exp. Optical Array | -5/Zhirov | Free Imp. Arc Thrower | -5/Zhirov | Free Adv. Heavy Siege Treads | -4/Factory | Hacked Mak. Trap Scanner | -4/Factory | Scanalyzed Exp. Signal Interpreter | -4/Factory | Hacked Adv. Remote Datajack | -4/Factory | Hacked Antimissile System | -4/Factory | Hacked Micro-nuke Launcher | -4/Factory | Hacked Adv. Datajack | -4/Factory | Scanalyzed Exp. Hacking Suite | -4/Factory | Hacked Biometal Heavy Treads | -4/Factory | Hacked Exp. EM Disruption Field | -4/Factory | Hacked Exp. Shield Generator | -4/Factory | Hacked Exp. Biometal Heavy Treads | -4/Factory | Scanalyzed Nanosword | -4/Factory | Scanalyzed Exp. Cloaking Device | -4/Factory | Scanalyzed Imp. Fusion Compressor | -4/Armory | Hacked Quantum Capacitor | -4/Armory | Hacked Enh. Nova Cannon | -4/Armory | Hacked Hvy. Armored Exoskeleton | -4/Armory | Hacked Imp. Component Analysis Suite | -4/Armory | Hacked Quantum Shading Machine | -3/Research | Hacked Exp. Terrain Scanner | -3/Research | Hacked Exp. Target Analyzer | -3/Research | Hacked Adv. Weapon Cycler | -3/Quarantine | Hacked Adv. Phase Shifter | -3/Quarantine | Hacked Exp. Thermal Shield | -3/Quarantine | Hacked Beam Splitter | -2/Research | Hacked Singularity Reactor | -2/Section 7 | Hacked Cld. Linear Gravjet | -2/Section 7 | Hacked Exp. Biometal Medium Treads | -2/Section 7 | Hacked Adv. EM Disruption Field | -2/Section 7 | Archive Robot Schematics ------------------ O-16 Technician | -10/Materials | Hacked M-13 Machinist | -10/Materials | Hacked A-02 Transporter | -10/Materials | Hacked I-47 Archangel | -5/Factory | Hacked X-67 Chaingunner | -5/Factory | Hacked A-15 Conveyor | -5/Factory | Hacked P-70 Sage | -5/Factory | Hacked S-27 Virus | -5/Factory | Hacked L-61 Swordsman | -4/Factory | Hacked A-27 Freighter | -4/Factory | Hacked O-32 Director | -4/Factory | Hacked C-55 Analyst | -4/Armory | Hacked H-88 Terminator | -2/Testing | Archive C-65 Expert | -2/Section 7 | Hacked G-73 Enforcer | -2/Section 7 | Hacked R-10 Processor | -2/Section 7 | Archive R-06 Scavenger | -2/Section 7 | Archive G-67 Veteran | -2/Section 7 | Archive Fabricated ------------ Imp. Trap Extractor | x2 | -7/Factory Surge Thruster | x2 | -7/Factory Transport Network Coupler | x2 | -6/Factory Adv. Surge Thruster | x2 | -6/Factory Imp. Plasma Cutter | x2 | -6/Factory Imp. Shield Generator | x2 | -6/Factory F-cell Engine | x1 | -6/Factory Adv. Surge Thruster | x2 | -6/Factory Adv. Shield Generator | x2 | -6/Factory Target Analyzer | x2 | -6/Factory Adv. Powered Armor | x1 | -5/Factory Adv. Powered Armor | x1 | -5/Factory Adv. Datajack | x1 | -5/Factory | Preloaded Transport Network Coupler | x2 | -5/Factory Adv. System Restoration Module | x2 | -5/Factory Adv. Surge Thruster | x2 | -5/Factory Imp. Quantum Reactor | x1 | -5/Factory Adv. System Restoration Module | x2 | -5/Factory Cld. Q-thruster | x1 | -5/Factory Cld. Q-thruster | x1 | -5/Factory Cld. Q-thruster | x1 | -5/Factory Cld. Q-thruster | x1 | -5/Factory Imp. Quantum Reactor | x1 | -5/Factory Lrn. Terrain Scanner | x1 | -5/Factory Adv. Transmission Jammer | x1 | -5/Factory Adv. System Restoration Module | x2 | -5/Factory Adv. Signal Interpreter | x2 | -5/Factory Adv. Signal Interpreter | x2 | -4/Factory Exp. Signal Interpreter | x1 | -4/Factory Transport Network Coupler | x2 | -4/Factory Exp. Shield Generator | x1 | -4/Factory Exp. EM Disruption Field | x1 | -4/Factory Adv. System Restoration Module | x2 | -4/Factory Exp. Targeting Computer | x1 | -4/Armory A-15 Conveyor | x1 | -4/Armory A-15 Conveyor | x1 | -4/Armory A-15 Conveyor | x1 | -4/Armory C-55 Analyst | x1 | -4/Armory Quantum Shading Machine | x1 | -3/Research Adv. System Restoration Module | x2 | -3/Research Nanosword | x1 | -3/Research Exp. Terrain Scanner | x1 | -2/Research Beam Splitter | x1 | -1/Access Cld. Linear Gravjet | x1 | -1/Access Alien Tech Used ----------------- Integrated Dissipator Core Expander LC Capacitor Matter Drive Core Stripper Sigix Broadsword Core Regenerator Drained L-Cannon Subatomic Replicator L-Cannon LRC Inertial Stabilizer Integrated Mediator Integrated Thermoelectric Network Integrity Redistributor Transdimensional Reconstructor Achievements -------------- Poison In The Code Challenges ------------ None RPGLIKE | -11 -10 -10 -10 -8 -7 -7 -7 -7 -7 -6 -6 -6 -6 -6 -6 -5 -5 -5 -5 -5 -5 -5 -5 -4 -4 -4 -4 -4 -4 -3 -3 -2 -2 -2 -1 -1 -1 --------- Run | Yrd Mat Min Sub Mat Fac Was Fac DSF Gar Fac Ext Cet Arc Hub Gar Fac Was Fac Gar Fac Upp Upp Zhi Pro Fac Was Fac Arm Lab Res Qua Res Tes Sec Acc Com Ac0 Levels Raised 37 | . 1 1 . 5 2 . . 1 1 4 1 1 . 1 1 2 . . 1 . . 1 . . 2 . . 1 . 2 . 2 1 . 2 3 1 XP Earned 62142 | 6000 1980 1300 1015 6435 2961 200 . 1600 2250 5364 1632 793 436 1132 1613 2792 79 906 855 847 221 173 105 1185 2424 46 235 754 754 2711 567 1911 1273 893 2518 5038 1144 XP Spent 61410 | 6000 1450 800 . 7015 2600 . . 1100 1500 7630 . 2600 . . . 6500 . . . 1750 . . . . 3200 . . . . 5740 . 1600 1100 . . 6600 4225 Upgrades 100 | 11 2 1 . 22 2 . . 1 1 17 . 1 . . . 4 . . . 1 . . . . 1 . . . . 17 . 1 1 . . 3 14 Power Slot 2 | . . . . . . . . . . 1 . . . . . . . . . . . . . . . . . . . . . . . . . 1 . Propulsion Slot 4 | 2 . . . . . . . . . 1 . . . . . 1 . . . . . . . . . . . . . . . . . . . . . Utility Slot 12 | 3 1 . . 1 1 . . . . 1 . 1 . . . 1 . . . . . . . . 1 . . . . 1 . . . . . 1 . Weapon Slot 3 | 1 . 1 . . . . . . . . . . . . . . . . . . . . . . . . . . . . . . 1 . . . . Core Integrity 31 | . . . . 3 . . . . . 1 . . . . . . . . . . . . . . . . . . . 16 . . . . . . 11 Heat Dissipation 9 | . . . . 3 . . . . . 6 . . . . . . . . . . . . . . . . . . . . . . . . . . . Energy Generation 2 | . . . . 1 . . . . . 1 . . . . . . . . . . . . . . . . . . . . . . . . . . . Mass Support 4 | 1 . . . . 1 . . 1 . . . . . . . . . . . . . . . . . . . . . . . 1 . . . . . Inventory Capacity 8 | 3 . . . 2 . . . . 1 . . . . . . . . . . 1 . . . . . . . . . . . . . . . 1 . Sight Range 2 | . . . . . . . . . . 1 . . . . . . . . . . . . . . . . . . . . . . . . . . 1 Sensor Range 11 | . . . . 9 . . . . . 2 . . . . . . . . . . . . . . . . . . . . . . . . . . . Terrain Scan Density 2 | . 1 . . . . . . . . 1 . . . . . . . . . . . . . . . . . . . . . . . . . . . Ranged Accuracy 2 | . . . . . . . . . . . . . . . . . . . . . . . . . . . . . . . . . . . . . 2 Hack Attack % 6 | . . . . 2 . . . . . 2 . . . . . 2 . . . . . . . . . . . . . . . . . . . . . Hack Defense % 2 | 1 . . . 1 . . . . . . . . . . . . . . . . . . . . . . . . . . . . . . . . . Protomatter Created 7495 | . 176 42 82 59 93 . . . 189 382 49 . 74 201 362 223 95 253 93 546 160 129 . 141 1052 . 30 191 . 551 232 366 1079 93 227 229 96 Integrity Restored 17028 | . 295 . 281 162 162 74 . . 230 338 343 . 222 437 1082 717 . 789 131 687 60 176 45 477 1534 . . 844 180 1178 696 1093 1951 267 286 1064 1227 Core 13050 | . 150 . 204 129 150 . . . 116 218 275 . 222 311 800 490 . 544 44 489 47 158 8 441 1180 . . 598 154 1022 696 1044 1359 149 237 588 1227 Parts 3978 | . 145 . 77 33 12 74 . . 114 120 68 . . 126 282 227 . 245 87 198 13 18 37 36 354 . . 246 26 156 . 49 592 118 49 476 . Protomatter Decayed 7020 | . 26 . 80 . . . . . 53 262 41 . . 39 16 225 . 37 77 469 129 121 . 46 601 . . 50 . 98 . . 110 . 225 4127 188 Game ------ Seed ExperimentalChainNetwork Manual? 0 Play Time 10:27:50 Cumulative 714.7 hours Start 2024.04.17 @ 23:50:36 End 2024.04.18 @ 20:24:29 Sessions 5 Manual Loads 0 Difficulty Explorer Special Mode Winter2019/RPGLIKE Game No. 292 Rogue 263 Adventurer 3 Explorer 26 Win Type - Total 16 Types 10/3/1/1/0/1/0/0/0 Lore% 91 Gallery% 96 Achievement% 85 Wizard Run 0 Options --------- Layout 2 ASCII 0 Keyboard 0 Movement Numpad Keybinds 0 Fullscreen 2 Font 24/Smallcaps Map View 50x44 Zoom Use 0% Tactical HUD 1 Map Filters NONE Filters NONE Steam 1 RUN: bb950df3-1538-4d1f-9acd-0a7b5d8048d0